{"text_format":"1","workbook":"xlsx","n_sheets":4,"sheets":["üNr","Tipps","Urlaubsauswertung","Lotsen"],"not_rendered":{"charts":0,"images":0,"macros":1,"external_links":0,"defined_names":1,"comments":0,"pivot_tables":0},"unopened":[],"bounds":{"document_bytes":16777216,"sheet_cells":100000,"rows_first":2000,"rows_last":500,"rows_between":2000,"halvings":0,"cell_chars":16384,"cell_head_chars":4096},"cells_cut":0,"cells_raw":0,"read":"whole","date_system":"1900"}

{"sheet":"üNr","index":0,"n_rows":1000,"n_cols":33,"rows_kept":1000,"cut":false,"hidden":false,"merged":[[0,1,0,8],[2,1,3,1],[2,2,3,2],[2,5,3,5],[2,6,3,6],[2,7,2,8],[2,3,2,4]]}
[null,"Liste für Abteilungen mit übersprungenen Nummern"]
[null,null,null,null,null,{"$f":"SUM(F5:F1000)","v":404},null,null,{"$f":"TODAY()","v":"2025-02-14"}]
[null,null,"Name","Abteilung",null,"Anzahl üNr.",null,"Zusammenfassung",null,null,"Abrechnung","Rest Nr."]
[null,null,null,"Datum","LN",null,null,"Namen","Nr. Gesamt","Urlaubstag","Monatsende","Mitnahme","U-Tag","Datum","U-Tag","Datum","U-Tag","Datum","U-Tag","Datum","U-Tag","Datum","U-Tag","Datum","U-Tag","Datum","U-Tag","Datum","U-Tag","Datum","U-Tag","Datum","Namen"]
[null,{"$f":"IF(C5=\"\",\"\",1)","v":1},"Baum","2025-02-01",4,{"$f":"IF(D5=\"\",\"\",E5-1)","v":3},null,"A",{"$f":"SUMIF($C$5:$C$1000,H5,$F$5:$F$1000)+L5","v":0},{"$f":"IF(I5>=60,1,0)","v":0},{"$f":"IF(J5>0,I5-60,IF(J5=0,I5,0))","v":0},0,null,null,null,null,null,null,null,null,null,null,null,null,null,null,null,null,null,null,null,null,{"$f":"IF(Lotsen!A2=\"\",\"zzz\",Lotsen!A2)","v":"A"}]
[null,{"$f":"IF(C6=\"\",\"\",B5+1)","v":2},"Bert","2025-02-01",3,{"$f":"IF(D6=\"\",\"\",E6-1)","v":2},null,"B",{"$f":"SUMIF($C$5:$C$1000,H6,$F$5:$F$1000)+L6","v":0},{"$f":"IF(I6>=60,1,0)","v":0},{"$f":"IF(J6>0,I6-60,IF(J6=0,I6,0))","v":0},0,null,null,null,null,null,null,null,null,null,null,null,null,null,null,null,null,null,null,null,null,{"$f":"IF(Lotsen!A3=\"\",\"zzz\",Lotsen!A3)","v":"B"}]
[null,{"$f":"IF(C7=\"\",\"\",B6+1)","v":3},"Blech","2025-02-01",3,2,null,"Baum",4,0,4,0,4,"2025-05-05",null,null,null,null,null,null,null,null,null,null,null,null,null,null,null,null,null,null,{"$f":"IF(Lotsen!A4=\"\",\"zzz\",Lotsen!A4)","v":"Baum"}]
[null,4,"Claus","2025-02-01",2,1,null,"Bert",3,0,3,0,5,"2025-08-05",null,null,null,null,null,null,null,null,null,null,null,null,null,null,null,null,null,null,{"$f":"IF(Lotsen!A5=\"\",\"zzz\",Lotsen!A5)","v":"Bert"}]
[null,5,"Clausi","2025-02-01",2,1,null,"Blech",3,0,3,0,6,"2025-07-01",null,null,null,null,null,null,null,null,null,null,null,null,null,null,null,null,null,null,{"$f":"IF(Lotsen!A6=\"\",\"zzz\",Lotsen!A6)","v":"Blech"}]
[null,6,"Baum","2025-02-01",2,1,null,"C",0,0,0,0,null,null,null,null,null,null,null,null,null,null,null,null,null,null,null,null,null,null,null,null,{"$f":"IF(Lotsen!A7=\"\",\"zzz\",Lotsen!A7)","v":"C"}]
[null,7,"Bert","2025-02-01",2,1,null,"Claus",3,0,3,0,null,null,null,null,null,null,null,null,null,null,null,null,null,null,null,null,null,null,null,null,{"$f":"IF(Lotsen!A8=\"\",\"zzz\",Lotsen!A8)","v":"Claus"}]
[null,8,"Blech","2025-02-01",2,1,null,"Clausi",3,0,3,0,null,null,null,null,null,null,null,null,null,null,null,null,null,null,null,null,null,null,null,null,{"$f":"IF(Lotsen!A9=\"\",\"zzz\",Lotsen!A9)","v":"Clausi"}]
[null,9,"Claus","2025-02-01",3,2,null,"D",0,0,0,0,null,null,null,null,null,null,null,null,null,null,null,null,null,null,null,null,null,null,null,null,{"$f":"IF(Lotsen!A10=\"\",\"zzz\",Lotsen!A10)","v":"D"}]
[null,10,"Clausi","2025-02-01",3,2,null,"Dietmar",0,0,0,0,null,null,null,null,null,null,null,null,null,null,null,null,null,null,null,null,null,null,null,null,{"$f":"IF(Lotsen!A11=\"\",\"zzz\",Lotsen!A11)","v":"Dietmar"}]
[null,"",null,"2025-02-01",2,1,null,"Dietter",0,0,0,0,null,null,null,null,null,null,null,null,null,null,null,null,null,null,null,null,null,null,null,null,{"$f":"IF(Lotsen!A12=\"\",\"zzz\",Lotsen!A12)","v":"Dietter"}]
[null,"",null,"2025-02-01",4,3,null,"Dirk",0,0,0,0,null,null,null,null,null,null,null,null,null,null,null,null,null,null,null,null,null,null,null,null,{"$f":"IF(Lotsen!A13=\"\",\"zzz\",Lotsen!A13)","v":"Dirk"}]
[null,"",null,"2025-02-01",4,3,null,"E",0,0,0,0,null,null,null,null,null,null,null,null,null,null,null,null,null,null,null,null,null,null,null,null,{"$f":"IF(Lotsen!A14=\"\",\"zzz\",Lotsen!A14)","v":"E"}]
[null,"",null,"2025-02-01",3,2,null,"Elfi",0,0,0,0,null,null,null,null,null,null,null,null,null,null,null,null,null,null,null,null,null,null,null,null,{"$f":"IF(Lotsen!A15=\"\",\"zzz\",Lotsen!A15)","v":"Elfi"}]
[null,"",null,"2025-02-01",3,2,null,"Erwin",0,0,0,0,null,null,null,null,null,null,null,null,null,null,null,null,null,null,null,null,null,null,null,null,{"$f":"IF(Lotsen!A16=\"\",\"zzz\",Lotsen!A16)","v":"Erwin"}]
[null,"",null,"2025-02-01",2,1,null,"F",0,0,0,0,null,null,null,null,null,null,null,null,null,null,null,null,null,null,null,null,null,null,null,null,{"$f":"IF(Lotsen!A17=\"\",\"zzz\",Lotsen!A17)","v":"F"}]
[null,"",null,"2025-02-01",2,1,null,"Frank",0,0,0,0,null,null,null,null,null,null,null,null,null,null,null,null,null,null,null,null,null,null,null,null,{"$f":"IF(Lotsen!A18=\"\",\"zzz\",Lotsen!A18)","v":"Frank"}]
[null,"",null,"2025-02-01",2,1,null,"Fritz",0,0,0,0,null,null,null,null,null,null,null,null,null,null,null,null,null,null,null,null,null,null,null,null,{"$f":"IF(Lotsen!A19=\"\",\"zzz\",Lotsen!A19)","v":"Fritz"}]
[null,"",null,"2025-02-02",2,1,null,"zzz",0,0,0,0,null,null,null,null,null,null,null,null,null,null,null,null,null,null,null,null,null,null,null,null,{"$f":"IF(Lotsen!A20=\"\",\"zzz\",Lotsen!A20)","v":"zzz"}]
[null,"",null,"2025-02-02",2,1,null,"zzz",0,0,0,0,null,null,null,null,null,null,null,null,null,null,null,null,null,null,null,null,null,null,null,null,{"$f":"IF(Lotsen!A21=\"\",\"zzz\",Lotsen!A21)","v":"zzz"}]
[null,"",null,"2025-02-02",3,2,null,"zzz",0,0,0,0,null,null,null,null,null,null,null,null,null,null,null,null,null,null,null,null,null,null,null,null,{"$f":"IF(Lotsen!A22=\"\",\"zzz\",Lotsen!A22)","v":"zzz"}]
[null,"",null,"2025-02-02",5,4,null,"zzz",0,0,0,0,null,null,null,null,null,null,null,null,null,null,null,null,null,null,null,null,null,null,null,null,{"$f":"IF(Lotsen!A23=\"\",\"zzz\",Lotsen!A23)","v":"zzz"}]
[null,"",null,"2025-02-02",5,4,null,"zzz",0,0,0,0,null,null,null,null,null,null,null,null,null,null,null,null,null,null,null,null,null,null,null,null,{"$f":"IF(Lotsen!A24=\"\",\"zzz\",Lotsen!A24)","v":"zzz"}]
[null,"",null,"2025-02-02",2,1,null,"zzz",0,0,0,0,null,null,null,null,null,null,null,null,null,null,null,null,null,null,null,null,null,null,null,null,{"$f":"IF(Lotsen!A25=\"\",\"zzz\",Lotsen!A25)","v":"zzz"}]
[null,"",null,"2025-02-02",5,4,null,"zzz",0,0,0,0,null,null,null,null,null,null,null,null,null,null,null,null,null,null,null,null,null,null,null,null,{"$f":"IF(Lotsen!A26=\"\",\"zzz\",Lotsen!A26)","v":"zzz"}]
[null,"",null,"2025-02-02",3,2,null,"zzz",0,0,0,0,null,null,null,null,null,null,null,null,null,null,null,null,null,null,null,null,null,null,null,null,{"$f":"IF(Lotsen!A27=\"\",\"zzz\",Lotsen!A27)","v":"zzz"}]
[null,"",null,"2025-02-02",2,1,null,"zzz",0,0,0,0,null,null,null,null,null,null,null,null,null,null,null,null,null,null,null,null,null,null,null,null,{"$f":"IF(Lotsen!A28=\"\",\"zzz\",Lotsen!A28)","v":"zzz"}]
[null,"",null,"2025-02-02",5,4,null,"zzz",0,0,0,0,null,null,null,null,null,null,null,null,null,null,null,null,null,null,null,null,null,null,null,null,{"$f":"IF(Lotsen!A29=\"\",\"zzz\",Lotsen!A29)","v":"zzz"}]
[null,"",null,"2025-02-02",2,1,null,"zzz",0,0,0,0,null,null,null,null,null,null,null,null,null,null,null,null,null,null,null,null,null,null,null,null,{"$f":"IF(Lotsen!A30=\"\",\"zzz\",Lotsen!A30)","v":"zzz"}]
[null,"",null,"2025-02-02",2,1,null,"zzz",0,0,0,0,null,null,null,null,null,null,null,null,null,null,null,null,null,null,null,null,null,null,null,null,{"$f":"IF(Lotsen!A31=\"\",\"zzz\",Lotsen!A31)","v":"zzz"}]
[null,"",null,"2025-02-02",5,4,null,"zzz",0,0,0,0,null,null,null,null,null,null,null,null,null,null,null,null,null,null,null,null,null,null,null,null,{"$f":"IF(Lotsen!A32=\"\",\"zzz\",Lotsen!A32)","v":"zzz"}]
[null,"",null,"2025-02-02",6,5,null,"zzz",0,0,0,0,null,null,null,null,null,null,null,null,null,null,null,null,null,null,null,null,null,null,null,null,{"$f":"IF(Lotsen!A33=\"\",\"zzz\",Lotsen!A33)","v":"zzz"}]
[null,"",null,"2025-02-02",3,2,null,"zzz",0,0,0,0,null,null,null,null,null,null,null,null,null,null,null,null,null,null,null,null,null,null,null,null,{"$f":"IF(Lotsen!A34=\"\",\"zzz\",Lotsen!A34)","v":"zzz"}]
[null,"",null,"2025-02-02",4,3,null,"zzz",0,0,0,0,null,null,null,null,null,null,null,null,null,null,null,null,null,null,null,null,null,null,null,null,{"$f":"IF(Lotsen!A35=\"\",\"zzz\",Lotsen!A35)","v":"zzz"}]
[null,"",null,"2025-02-02",5,4,null,"zzz",0,0,0,0,null,null,null,null,null,null,null,null,null,null,null,null,null,null,null,null,null,null,null,null,{"$f":"IF(Lotsen!A36=\"\",\"zzz\",Lotsen!A36)","v":"zzz"}]
[null,"",null,"2025-02-02",2,1,null,"zzz",0,0,0,0,null,null,null,null,null,null,null,null,null,null,null,null,null,null,null,null,null,null,null,null,{"$f":"IF(Lotsen!A37=\"\",\"zzz\",Lotsen!A37)","v":"zzz"}]
[null,"",null,"2025-02-03",2,1,null,"zzz",0,0,0,0,null,null,null,null,null,null,null,null,null,null,null,null,null,null,null,null,null,null,null,null,{"$f":"IF(Lotsen!A38=\"\",\"zzz\",Lotsen!A38)","v":"zzz"}]
[null,"",null,"2025-02-03",2,1,null,"zzz",0,0,0,0,null,null,null,null,null,null,null,null,null,null,null,null,null,null,null,null,null,null,null,null,{"$f":"IF(Lotsen!A39=\"\",\"zzz\",Lotsen!A39)","v":"zzz"}]
[null,"",null,"2025-02-03",2,1,null,"zzz",0,0,0,0,null,null,null,null,null,null,null,null,null,null,null,null,null,null,null,null,null,null,null,null,{"$f":"IF(Lotsen!A40=\"\",\"zzz\",Lotsen!A40)","v":"zzz"}]
[null,"",null,"2025-02-03",2,1,null,"zzz",0,0,0,0,null,null,null,null,null,null,null,null,null,null,null,null,null,null,null,null,null,null,null,null,{"$f":"IF(Lotsen!A41=\"\",\"zzz\",Lotsen!A41)","v":"zzz"}]
[null,"",null,"2025-02-03",2,1,null,"zzz",0,0,0,0,null,null,null,null,null,null,null,null,null,null,null,null,null,null,null,null,null,null,null,null,{"$f":"IF(Lotsen!A42=\"\",\"zzz\",Lotsen!A42)","v":"zzz"}]
[null,"",null,"2025-02-03",4,3,null,"zzz",0,0,0,0,null,null,null,null,null,null,null,null,null,null,null,null,null,null,null,null,null,null,null,null,{"$f":"IF(Lotsen!A43=\"\",\"zzz\",Lotsen!A43)","v":"zzz"}]
[null,"",null,"2025-03-03",8,7,null,"zzz",0,0,0,0,null,null,null,null,null,null,null,null,null,null,null,null,null,null,null,null,null,null,null,null,{"$f":"IF(Lotsen!A44=\"\",\"zzz\",Lotsen!A44)","v":"zzz"}]
[null,"",null,"2025-02-03",8,7,null,"zzz",0,0,0,0,null,null,null,null,null,null,null,null,null,null,null,null,null,null,null,null,null,null,null,null,{"$f":"IF(Lotsen!A45=\"\",\"zzz\",Lotsen!A45)","v":"zzz"}]
[null,"",null,"2025-02-03",8,7,null,"zzz",0,0,0,0,null,null,null,null,null,null,null,null,null,null,null,null,null,null,null,null,null,null,null,null,{"$f":"IF(Lotsen!A46=\"\",\"zzz\",Lotsen!A46)","v":"zzz"}]
[null,"",null,"2025-02-03",2,1,null,"zzz",0,0,0,0,null,null,null,null,null,null,null,null,null,null,null,null,null,null,null,null,null,null,null,null,{"$f":"IF(Lotsen!A47=\"\",\"zzz\",Lotsen!A47)","v":"zzz"}]
[null,"",null,"2025-02-03",4,3,null,"zzz",0,0,0,0,null,null,null,null,null,null,null,null,null,null,null,null,null,null,null,null,null,null,null,null,{"$f":"IF(Lotsen!A48=\"\",\"zzz\",Lotsen!A48)","v":"zzz"}]
[null,"",null,"2025-02-03",4,3,null,"zzz",0,0,0,0,null,null,null,null,null,null,null,null,null,null,null,null,null,null,null,null,null,null,null,null,{"$f":"IF(Lotsen!A49=\"\",\"zzz\",Lotsen!A49)","v":"zzz"}]
[null,"",null,"2025-02-03",5,4,null,"zzz",0,0,0,0,null,null,null,null,null,null,null,null,null,null,null,null,null,null,null,null,null,null,null,null,{"$f":"IF(Lotsen!A50=\"\",\"zzz\",Lotsen!A50)","v":"zzz"}]
[null,"",null,"2025-02-03",7,6,null,"zzz",0,0,0,0,null,null,null,null,null,null,null,null,null,null,null,null,null,null,null,null,null,null,null,null,{"$f":"IF(Lotsen!A51=\"\",\"zzz\",Lotsen!A51)","v":"zzz"}]
[null,"",null,"2025-02-03",6,5,null,"zzz",0,0,0,0,null,null,null,null,null,null,null,null,null,null,null,null,null,null,null,null,null,null,null,null,{"$f":"IF(Lotsen!A52=\"\",\"zzz\",Lotsen!A52)","v":"zzz"}]
[null,"",null,"2025-02-03",6,5,null,"zzz",0,0,0,0,null,null,null,null,null,null,null,null,null,null,null,null,null,null,null,null,null,null,null,null,{"$f":"IF(Lotsen!A53=\"\",\"zzz\",Lotsen!A53)","v":"zzz"}]
[null,"",null,"2025-02-03",7,6,null,"zzz",0,0,0,0,null,null,null,null,null,null,null,null,null,null,null,null,null,null,null,null,null,null,null,null,{"$f":"IF(Lotsen!A54=\"\",\"zzz\",Lotsen!A54)","v":"zzz"}]
[null,"",null,"2025-02-03",8,7,null,"zzz",0,0,0,0,null,null,null,null,null,null,null,null,null,null,null,null,null,null,null,null,null,null,null,null,{"$f":"IF(Lotsen!A55=\"\",\"zzz\",Lotsen!A55)","v":"zzz"}]
[null,"",null,"2025-02-03",8,7,null,"zzz",0,0,0,0,null,null,null,null,null,null,null,null,null,null,null,null,null,null,null,null,null,null,null,null,{"$f":"IF(Lotsen!A56=\"\",\"zzz\",Lotsen!A56)","v":"zzz"}]
[null,"",null,"2025-02-03",6,5,null,"zzz",0,0,0,0,null,null,null,null,null,null,null,null,null,null,null,null,null,null,null,null,null,null,null,null,{"$f":"IF(Lotsen!A57=\"\",\"zzz\",Lotsen!A57)","v":"zzz"}]
[null,"",null,"2025-02-03",2,1,null,"zzz",0,0,0,0,null,null,null,null,null,null,null,null,null,null,null,null,null,null,null,null,null,null,null,null,{"$f":"IF(Lotsen!A58=\"\",\"zzz\",Lotsen!A58)","v":"zzz"}]
[null,"",null,"2025-02-04",2,1,null,"zzz",0,0,0,0,null,null,null,null,null,null,null,null,null,null,null,null,null,null,null,null,null,null,null,null,{"$f":"IF(Lotsen!A59=\"\",\"zzz\",Lotsen!A59)","v":"zzz"}]
[null,"",null,"2025-02-04",4,3,null,"zzz",0,0,0,0,null,null,null,null,null,null,null,null,null,null,null,null,null,null,null,null,null,null,null,null,{"$f":"IF(Lotsen!A60=\"\",\"zzz\",Lotsen!A60)","v":"zzz"}]
[null,"",null,"2025-02-04",4,3,null,"zzz",0,0,0,0,null,null,null,null,null,null,null,null,null,null,null,null,null,null,null,null,null,null,null,null,{"$f":"IF(Lotsen!A61=\"\",\"zzz\",Lotsen!A61)","v":"zzz"}]
[null,"",null,"2025-02-04",3,2,null,"zzz",0,0,0,0,null,null,null,null,null,null,null,null,null,null,null,null,null,null,null,null,null,null,null,null,{"$f":"IF(Lotsen!A62=\"\",\"zzz\",Lotsen!A62)","v":"zzz"}]
[null,"",null,"2025-02-04",3,2,null,"zzz",0,0,0,0,null,null,null,null,null,null,null,null,null,null,null,null,null,null,null,null,null,null,null,null,{"$f":"IF(Lotsen!A63=\"\",\"zzz\",Lotsen!A63)","v":"zzz"}]
[null,"",null,"2025-02-04",2,1,null,"zzz",0,0,0,0,null,null,null,null,null,null,null,null,null,null,null,null,null,null,null,null,null,null,null,null,{"$f":"IF(Lotsen!A64=\"\",\"zzz\",Lotsen!A64)","v":"zzz"}]
[null,"",null,"2025-02-04",2,1,null,"zzz",0,0,0,0,null,null,null,null,null,null,null,null,null,null,null,null,null,null,null,null,null,null,null,null,{"$f":"IF(Lotsen!A65=\"\",\"zzz\",Lotsen!A65)","v":"zzz"}]
[null,"",null,"2025-02-04",3,2,null,"zzz",0,0,0,0,null,null,null,null,null,null,null,null,null,null,null,null,null,null,null,null,null,null,null,null,{"$f":"IF(Lotsen!A66=\"\",\"zzz\",Lotsen!A66)","v":"zzz"}]
[null,"",null,"2025-02-04",3,{"$f":"IF(D70=\"\",\"\",E70-1)","v":2},null,"zzz",{"$f":"SUMIF($C$5:$C$1000,H70,$F$5:$F$1000)+L70","v":0},{"$f":"IF(I70>=60,1,0)","v":0},{"$f":"IF(J70>0,I70-60,IF(J70=0,I70,0))","v":0},0,null,null,null,null,null,null,null,null,null,null,null,null,null,null,null,null,null,null,null,null,{"$f":"IF(Lotsen!A67=\"\",\"zzz\",Lotsen!A67)","v":"zzz"}]
[null,{"$f":"IF(C71=\"\",\"\",B70+1)","v":""},null,"2025-02-04",2,1,null,"zzz",0,0,0,0,null,null,null,null,null,null,null,null,null,null,null,null,null,null,null,null,null,null,null,null,{"$f":"IF(Lotsen!A68=\"\",\"zzz\",Lotsen!A68)","v":"zzz"}]
[null,"",null,"2025-02-04",2,1,null,"zzz",0,0,0,0,null,null,null,null,null,null,null,null,null,null,null,null,null,null,null,null,null,null,null,null,{"$f":"IF(Lotsen!A69=\"\",\"zzz\",Lotsen!A69)","v":"zzz"}]
[null,"",null,"2025-02-04",2,1,null,"zzz",0,0,0,0,null,null,null,null,null,null,null,null,null,null,null,null,null,null,null,null,null,null,null,null,{"$f":"IF(Lotsen!A70=\"\",\"zzz\",Lotsen!A70)","v":"zzz"}]
[null,"",null,"2025-02-05",2,1,null,"zzz",0,0,0,0,null,null,null,null,null,null,null,null,null,null,null,null,null,null,null,null,null,null,null,null,{"$f":"IF(Lotsen!A71=\"\",\"zzz\",Lotsen!A71)","v":"zzz"}]
[null,"",null,"2025-02-05",2,1,null,"zzz",0,0,0,0,null,null,null,null,null,null,null,null,null,null,null,null,null,null,null,null,null,null,null,null,{"$f":"IF(Lotsen!A72=\"\",\"zzz\",Lotsen!A72)","v":"zzz"}]
[null,"",null,"2025-02-05",4,3,null,"zzz",0,0,0,0,null,null,null,null,null,null,null,null,null,null,null,null,null,null,null,null,null,null,null,null,{"$f":"IF(Lotsen!A73=\"\",\"zzz\",Lotsen!A73)","v":"zzz"}]
[null,"",null,"2025-02-05",5,4,null,"zzz",0,0,0,0,null,null,null,null,null,null,null,null,null,null,null,null,null,null,null,null,null,null,null,null,{"$f":"IF(Lotsen!A74=\"\",\"zzz\",Lotsen!A74)","v":"zzz"}]
[null,"",null,"2025-02-05",8,7,null,"zzz",0,0,0,0,null,null,null,null,null,null,null,null,null,null,null,null,null,null,null,null,null,null,null,null,{"$f":"IF(Lotsen!A75=\"\",\"zzz\",Lotsen!A75)","v":"zzz"}]
[null,"",null,"2025-02-05",3,2,null,"zzz",0,0,0,0,null,null,null,null,null,null,null,null,null,null,null,null,null,null,null,null,null,null,null,null,{"$f":"IF(Lotsen!A76=\"\",\"zzz\",Lotsen!A76)","v":"zzz"}]
[null,"",null,"2025-02-05",3,2,null,"zzz",0,0,0,0,null,null,null,null,null,null,null,null,null,null,null,null,null,null,null,null,null,null,null,null,{"$f":"IF(Lotsen!A77=\"\",\"zzz\",Lotsen!A77)","v":"zzz"}]
[null,"",null,"2025-02-05",3,2,null,"zzz",0,0,0,0,null,null,null,null,null,null,null,null,null,null,null,null,null,null,null,null,null,null,null,null,{"$f":"IF(Lotsen!A78=\"\",\"zzz\",Lotsen!A78)","v":"zzz"}]
[null,"",null,"2025-02-05",4,3,null,"zzz",0,0,0,0,null,null,null,null,null,null,null,null,null,null,null,null,null,null,null,null,null,null,null,null,{"$f":"IF(Lotsen!A79=\"\",\"zzz\",Lotsen!A79)","v":"zzz"}]
[null,"",null,"2025-02-05",4,3,null,"zzz",0,0,0,0,null,null,null,null,null,null,null,null,null,null,null,null,null,null,null,null,null,null,null,null,{"$f":"IF(Lotsen!A80=\"\",\"zzz\",Lotsen!A80)","v":"zzz"}]
[null,"",null,"2025-02-05",4,3,null,"zzz",0,0,0,0,null,null,null,null,null,null,null,null,null,null,null,null,null,null,null,null,null,null,null,null,{"$f":"IF(Lotsen!A81=\"\",\"zzz\",Lotsen!A81)","v":"zzz"}]
[null,"",null,"2025-02-05",3,2,null,"zzz",0,0,0,0,null,null,null,null,null,null,null,null,null,null,null,null,null,null,null,null,null,null,null,null,{"$f":"IF(Lotsen!A82=\"\",\"zzz\",Lotsen!A82)","v":"zzz"}]
[null,"",null,"2025-02-05",3,2,null,"zzz",0,0,0,0,null,null,null,null,null,null,null,null,null,null,null,null,null,null,null,null,null,null,null,null,{"$f":"IF(Lotsen!A83=\"\",\"zzz\",Lotsen!A83)","v":"zzz"}]
[null,"",null,"2025-02-05",2,1,null,"zzz",0,0,0,0,null,null,null,null,null,null,null,null,null,null,null,null,null,null,null,null,null,null,null,null,{"$f":"IF(Lotsen!A84=\"\",\"zzz\",Lotsen!A84)","v":"zzz"}]
[null,"",null,"2025-02-05",2,1,null,"zzz",0,0,0,0,null,null,null,null,null,null,null,null,null,null,null,null,null,null,null,null,null,null,null,null,{"$f":"IF(Lotsen!A85=\"\",\"zzz\",Lotsen!A85)","v":"zzz"}]
[null,"",null,"2025-02-06",2,1,null,"zzz",0,0,0,0,null,null,null,null,null,null,null,null,null,null,null,null,null,null,null,null,null,null,null,null,{"$f":"IF(Lotsen!A86=\"\",\"zzz\",Lotsen!A86)","v":"zzz"}]
[null,"",null,"2025-02-06",2,1,null,"zzz",0,0,0,0,null,null,null,null,null,null,null,null,null,null,null,null,null,null,null,null,null,null,null,null,{"$f":"IF(Lotsen!A87=\"\",\"zzz\",Lotsen!A87)","v":"zzz"}]
[null,"",null,"2025-02-06",2,1,null,"zzz",0,0,0,0,null,null,null,null,null,null,null,null,null,null,null,null,null,null,null,null,null,null,null,null,{"$f":"IF(Lotsen!A88=\"\",\"zzz\",Lotsen!A88)","v":"zzz"}]
[null,"",null,"2025-02-06",3,2,null,"zzz",0,0,0,0,null,null,null,null,null,null,null,null,null,null,null,null,null,null,null,null,null,null,null,null,{"$f":"IF(Lotsen!A89=\"\",\"zzz\",Lotsen!A89)","v":"zzz"}]
[null,"",null,"2025-02-06",3,2,null,"zzz",0,0,0,0,null,null,null,null,null,null,null,null,null,null,null,null,null,null,null,null,null,null,null,null,{"$f":"IF(Lotsen!A90=\"\",\"zzz\",Lotsen!A90)","v":"zzz"}]
[null,"",null,"2025-02-06",3,2,null,"zzz",0,0,0,0,null,null,null,null,null,null,null,null,null,null,null,null,null,null,null,null,null,null,null,null,{"$f":"IF(Lotsen!A91=\"\",\"zzz\",Lotsen!A91)","v":"zzz"}]
[null,"",null,"2025-02-06",3,2,null,"zzz",0,0,0,0,null,null,null,null,null,null,null,null,null,null,null,null,null,null,null,null,null,null,null,null,{"$f":"IF(Lotsen!A92=\"\",\"zzz\",Lotsen!A92)","v":"zzz"}]
[null,"",null,"2025-02-06",3,2,null,"zzz",0,0,0,0,null,null,null,null,null,null,null,null,null,null,null,null,null,null,null,null,null,null,null,null,{"$f":"IF(Lotsen!A93=\"\",\"zzz\",Lotsen!A93)","v":"zzz"}]
[null,"",null,"2025-02-06",2,1,null,"zzz",0,0,0,0,null,null,null,null,null,null,null,null,null,null,null,null,null,null,null,null,null,null,null,null,{"$f":"IF(Lotsen!A94=\"\",\"zzz\",Lotsen!A94)","v":"zzz"}]
[null,"",null,"2025-02-06",4,3,null,"zzz",0,0,0,0,null,null,null,null,null,null,null,null,null,null,null,null,null,null,null,null,null,null,null,null,{"$f":"IF(Lotsen!A95=\"\",\"zzz\",Lotsen!A95)","v":"zzz"}]
[null,"",null,"2025-02-06",4,3,null,"zzz",0,0,0,0,null,null,null,null,null,null,null,null,null,null,null,null,null,null,null,null,null,null,null,null,{"$f":"IF(Lotsen!A96=\"\",\"zzz\",Lotsen!A96)","v":"zzz"}]
[null,"",null,"2025-02-06",4,3,null,"zzz",0,0,0,0,null,null,null,null,null,null,null,null,null,null,null,null,null,null,null,null,null,null,null,null,{"$f":"IF(Lotsen!A97=\"\",\"zzz\",Lotsen!A97)","v":"zzz"}]
[null,"",null,"2025-02-06",2,1,null,"zzz",0,0,0,0,null,null,null,null,null,null,null,null,null,null,null,null,null,null,null,null,null,null,null,null,{"$f":"IF(Lotsen!A98=\"\",\"zzz\",Lotsen!A98)","v":"zzz"}]
[null,"",null,"2025-02-06",2,1,null,"zzz",0,0,0,0,null,null,null,null,null,null,null,null,null,null,null,null,null,null,null,null,null,null,null,null,{"$f":"IF(Lotsen!A99=\"\",\"zzz\",Lotsen!A99)","v":"zzz"}]
[null,"",null,"2025-02-06",2,1,null,"zzz",0,0,0,0,null,null,null,null,null,null,null,null,null,null,null,null,null,null,null,null,null,null,null,null,{"$f":"IF(Lotsen!A100=\"\",\"zzz\",Lotsen!A100)","v":"zzz"}]
[null,"",null,"2025-02-06",2,1,null,"zzz",0,0,0,0,null,null,null,null,null,null,null,null,null,null,null,null,null,null,null,null,null,null,null,null,{"$f":"IF(Lotsen!A101=\"\",\"zzz\",Lotsen!A101)","v":"zzz"}]
[null,"",null,"2025-02-06",2,1,null,"zzz",0,0,0,0,null,null,null,null,null,null,null,null,null,null,null,null,null,null,null,null,null,null,null,null,{"$f":"IF(Lotsen!A102=\"\",\"zzz\",Lotsen!A102)","v":"zzz"}]
[null,"",null,"2025-02-06",2,1,null,"zzz",0,0,0,0,null,null,null,null,null,null,null,null,null,null,null,null,null,null,null,null,null,null,null,null,{"$f":"IF(Lotsen!A103=\"\",\"zzz\",Lotsen!A103)","v":"zzz"}]
[null,"",null,"2025-02-06",3,2,null,"zzz",0,0,0,0,null,null,null,null,null,null,null,null,null,null,null,null,null,null,null,null,null,null,null,null,{"$f":"IF(Lotsen!A104=\"\",\"zzz\",Lotsen!A104)","v":"zzz"}]
[null,"",null,"2025-02-06",2,1,null,"zzz",0,0,0,0,null,null,null,null,null,null,null,null,null,null,null,null,null,null,null,null,null,null,null,null,{"$f":"IF(Lotsen!A105=\"\",\"zzz\",Lotsen!A105)","v":"zzz"}]
[null,"",null,"2025-02-06",2,1,null,"zzz",0,0,0,0,null,null,null,null,null,null,null,null,null,null,null,null,null,null,null,null,null,null,null,null,{"$f":"IF(Lotsen!A106=\"\",\"zzz\",Lotsen!A106)","v":"zzz"}]
[null,"",null,"2025-02-06",3,2,null,"zzz",0,0,0,0,null,null,null,null,null,null,null,null,null,null,null,null,null,null,null,null,null,null,null,null,{"$f":"IF(Lotsen!A107=\"\",\"zzz\",Lotsen!A107)","v":"zzz"}]
[null,"",null,"2025-02-06",3,2,null,"zzz",0,0,0,0,null,null,null,null,null,null,null,null,null,null,null,null,null,null,null,null,null,null,null,null,{"$f":"IF(Lotsen!A108=\"\",\"zzz\",Lotsen!A108)","v":"zzz"}]
[null,"",null,"2025-02-06",3,2,null,"zzz",0,0,0,0,null,null,null,null,null,null,null,null,null,null,null,null,null,null,null,null,null,null,null,null,{"$f":"IF(Lotsen!A109=\"\",\"zzz\",Lotsen!A109)","v":"zzz"}]
[null,"",null,"2025-02-06",5,4,null,"zzz",0,0,0,0,null,null,null,null,null,null,null,null,null,null,null,null,null,null,null,null,null,null,null,null,{"$f":"IF(Lotsen!A110=\"\",\"zzz\",Lotsen!A110)","v":"zzz"}]
[null,"",null,"2025-02-06",3,2,null,"zzz",0,0,0,0,null,null,null,null,null,null,null,null,null,null,null,null,null,null,null,null,null,null,null,null,{"$f":"IF(Lotsen!A111=\"\",\"zzz\",Lotsen!A111)","v":"zzz"}]
[null,"",null,"2025-02-06",3,2,null,"zzz",0,0,0,0,null,null,null,null,null,null,null,null,null,null,null,null,null,null,null,null,null,null,null,null,{"$f":"IF(Lotsen!A112=\"\",\"zzz\",Lotsen!A112)","v":"zzz"}]
[null,"",null,"2025-02-07",3,2,null,"zzz",0,0,0,0,null,null,null,null,null,null,null,null,null,null,null,null,null,null,null,null,null,null,null,null,{"$f":"IF(Lotsen!A113=\"\",\"zzz\",Lotsen!A113)","v":"zzz"}]
[null,"",null,"2025-02-07",3,2,null,"zzz",0,0,0,0,null,null,null,null,null,null,null,null,null,null,null,null,null,null,null,null,null,null,null,null,{"$f":"IF(Lotsen!A114=\"\",\"zzz\",Lotsen!A114)","v":"zzz"}]
[null,"",null,"2025-02-07",4,3,null,"zzz",0,0,0,0,null,null,null,null,null,null,null,null,null,null,null,null,null,null,null,null,null,null,null,null,{"$f":"IF(Lotsen!A115=\"\",\"zzz\",Lotsen!A115)","v":"zzz"}]
[null,"",null,"2025-02-07",2,1,null,"zzz",0,0,0,0,null,null,null,null,null,null,null,null,null,null,null,null,null,null,null,null,null,null,null,null,{"$f":"IF(Lotsen!A116=\"\",\"zzz\",Lotsen!A116)","v":"zzz"}]
[null,"",null,"2025-02-07",2,1,null,"zzz",0,0,0,0,null,null,null,null,null,null,null,null,null,null,null,null,null,null,null,null,null,null,null,null,{"$f":"IF(Lotsen!A117=\"\",\"zzz\",Lotsen!A117)","v":"zzz"}]
[null,"",null,"2025-02-07",2,1,null,"zzz",0,0,0,0,null,null,null,null,null,null,null,null,null,null,null,null,null,null,null,null,null,null,null,null,{"$f":"IF(Lotsen!A118=\"\",\"zzz\",Lotsen!A118)","v":"zzz"}]
[null,"",null,"2025-02-07",5,4,null,"zzz",0,0,0,0,null,null,null,null,null,null,null,null,null,null,null,null,null,null,null,null,null,null,null,null,{"$f":"IF(Lotsen!A119=\"\",\"zzz\",Lotsen!A119)","v":"zzz"}]
[null,"",null,"2025-02-07",3,2,null,"zzz",0,0,0,0,null,null,null,null,null,null,null,null,null,null,null,null,null,null,null,null,null,null,null,null,{"$f":"IF(Lotsen!A120=\"\",\"zzz\",Lotsen!A120)","v":"zzz"}]
[null,"",null,"2025-02-07",2,1,null,"zzz",0,0,0,0,null,null,null,null,null,null,null,null,null,null,null,null,null,null,null,null,null,null,null,null,{"$f":"IF(Lotsen!A121=\"\",\"zzz\",Lotsen!A121)","v":"zzz"}]
[null,"",null,"2025-02-07",2,1,null,"zzz",0,0,0,0,null,null,null,null,null,null,null,null,null,null,null,null,null,null,null,null,null,null,null,null,{"$f":"IF(Lotsen!A122=\"\",\"zzz\",Lotsen!A122)","v":"zzz"}]
[null,"",null,"2025-02-07",2,1,null,"zzz",0,0,0,0,null,null,null,null,null,null,null,null,null,null,null,null,null,null,null,null,null,null,null,null,{"$f":"IF(Lotsen!A123=\"\",\"zzz\",Lotsen!A123)","v":"zzz"}]
[null,"",null,"2025-02-07",2,1,null,"zzz",0,0,0,0,null,null,null,null,null,null,null,null,null,null,null,null,null,null,null,null,null,null,null,null,{"$f":"IF(Lotsen!A124=\"\",\"zzz\",Lotsen!A124)","v":"zzz"}]
[null,"",null,"2025-02-07",2,1,null,"zzz",0,0,0,0,null,null,null,null,null,null,null,null,null,null,null,null,null,null,null,null,null,null,null,null,{"$f":"IF(Lotsen!A125=\"\",\"zzz\",Lotsen!A125)","v":"zzz"}]
[null,"",null,"2025-02-07",2,1,null,"zzz",0,0,0,0,null,null,null,null,null,null,null,null,null,null,null,null,null,null,null,null,null,null,null,null,{"$f":"IF(Lotsen!A126=\"\",\"zzz\",Lotsen!A126)","v":"zzz"}]
[null,"",null,"2025-02-07",2,1,null,"zzz",0,0,0,0,null,null,null,null,null,null,null,null,null,null,null,null,null,null,null,null,null,null,null,null,{"$f":"IF(Lotsen!A127=\"\",\"zzz\",Lotsen!A127)","v":"zzz"}]
[null,"",null,"2025-02-07",2,1,null,"zzz",0,0,0,0,null,null,null,null,null,null,null,null,null,null,null,null,null,null,null,null,null,null,null,null,{"$f":"IF(Lotsen!A128=\"\",\"zzz\",Lotsen!A128)","v":"zzz"}]
[null,"",null,"2025-02-07",2,1,null,"zzz",0,0,0,0,null,null,null,null,null,null,null,null,null,null,null,null,null,null,null,null,null,null,null,null,{"$f":"IF(Lotsen!A129=\"\",\"zzz\",Lotsen!A129)","v":"zzz"}]
[null,"",null,"2025-02-07",3,2,null,"zzz",0,0,0,0,null,null,null,null,null,null,null,null,null,null,null,null,null,null,null,null,null,null,null,null,{"$f":"IF(Lotsen!A130=\"\",\"zzz\",Lotsen!A130)","v":"zzz"}]
[null,"",null,"2025-02-07",2,{"$f":"IF(D134=\"\",\"\",E134-1)","v":1},null,"zzz",{"$f":"SUMIF($C$5:$C$1000,H134,$F$5:$F$1000)+L134","v":0},{"$f":"IF(I134>=60,1,0)","v":0},{"$f":"IF(J134>0,I134-60,IF(J134=0,I134,0))","v":0},0,null,null,null,null,null,null,null,null,null,null,null,null,null,null,null,null,null,null,null,null,{"$f":"IF(Lotsen!A131=\"\",\"zzz\",Lotsen!A131)","v":"zzz"}]
[null,{"$f":"IF(C135=\"\",\"\",B134+1)","v":""},null,"2025-02-07",2,1,null,"zzz",0,0,0,0,null,null,null,null,null,null,null,null,null,null,null,null,null,null,null,null,null,null,null,null,{"$f":"IF(Lotsen!A132=\"\",\"zzz\",Lotsen!A132)","v":"zzz"}]
[null,"",null,"2025-02-07",2,1,null,"zzz",0,0,0,0,null,null,null,null,null,null,null,null,null,null,null,null,null,null,null,null,null,null,null,null,{"$f":"IF(Lotsen!A133=\"\",\"zzz\",Lotsen!A133)","v":"zzz"}]
[null,"",null,"2025-02-07",2,1,null,"zzz",0,0,0,0,null,null,null,null,null,null,null,null,null,null,null,null,null,null,null,null,null,null,null,null,{"$f":"IF(Lotsen!A134=\"\",\"zzz\",Lotsen!A134)","v":"zzz"}]
[null,"",null,"2025-02-07",3,2,null,"zzz",0,0,0,0,null,null,null,null,null,null,null,null,null,null,null,null,null,null,null,null,null,null,null,null,{"$f":"IF(Lotsen!A135=\"\",\"zzz\",Lotsen!A135)","v":"zzz"}]
[null,"",null,"2025-02-08",2,1,null,"zzz",0,0,0,0,null,null,null,null,null,null,null,null,null,null,null,null,null,null,null,null,null,null,null,null,{"$f":"IF(Lotsen!A136=\"\",\"zzz\",Lotsen!A136)","v":"zzz"}]
[null,"",null,"2025-02-08",2,1,null,"zzz",0,0,0,0,null,null,null,null,null,null,null,null,null,null,null,null,null,null,null,null,null,null,null,null,{"$f":"IF(Lotsen!A137=\"\",\"zzz\",Lotsen!A137)","v":"zzz"}]
[null,"",null,"2025-02-08",2,1,null,"zzz",0,0,0,0,null,null,null,null,null,null,null,null,null,null,null,null,null,null,null,null,null,null,null,null,{"$f":"IF(Lotsen!A138=\"\",\"zzz\",Lotsen!A138)","v":"zzz"}]
[null,"",null,"2025-02-08",2,1,null,"zzz",0,0,0,0,null,null,null,null,null,null,null,null,null,null,null,null,null,null,null,null,null,null,null,null,{"$f":"IF(Lotsen!A139=\"\",\"zzz\",Lotsen!A139)","v":"zzz"}]
[null,"",null,"2025-02-08",2,1,null,"zzz",0,0,0,0,null,null,null,null,null,null,null,null,null,null,null,null,null,null,null,null,null,null,null,null,{"$f":"IF(Lotsen!A140=\"\",\"zzz\",Lotsen!A140)","v":"zzz"}]
[null,"",null,"2025-02-08",3,2,null,"zzz",0,0,0,0,null,null,null,null,null,null,null,null,null,null,null,null,null,null,null,null,null,null,null,null,{"$f":"IF(Lotsen!A141=\"\",\"zzz\",Lotsen!A141)","v":"zzz"}]
[null,"",null,"2025-02-08",2,1,null,"zzz",0,0,0,0,null,null,null,null,null,null,null,null,null,null,null,null,null,null,null,null,null,null,null,null,{"$f":"IF(Lotsen!A142=\"\",\"zzz\",Lotsen!A142)","v":"zzz"}]
[null,"",null,"2025-02-08",2,1,null,"zzz",0,0,0,0,null,null,null,null,null,null,null,null,null,null,null,null,null,null,null,null,null,null,null,null,{"$f":"IF(Lotsen!A143=\"\",\"zzz\",Lotsen!A143)","v":"zzz"}]
[null,"",null,"2025-02-08",3,2,null,"zzz",0,0,0,0,null,null,null,null,null,null,null,null,null,null,null,null,null,null,null,null,null,null,null,null,{"$f":"IF(Lotsen!A144=\"\",\"zzz\",Lotsen!A144)","v":"zzz"}]
[null,"",null,"2025-02-08",2,1,null,"zzz",0,0,0,0,null,null,null,null,null,null,null,null,null,null,null,null,null,null,null,null,null,null,null,null,{"$f":"IF(Lotsen!A145=\"\",\"zzz\",Lotsen!A145)","v":"zzz"}]
[null,"",null,"2025-02-08",3,2,null,"zzz",0,0,0,0,null,null,null,null,null,null,null,null,null,null,null,null,null,null,null,null,null,null,null,null,{"$f":"IF(Lotsen!A146=\"\",\"zzz\",Lotsen!A146)","v":"zzz"}]
[null,"",null,"2025-02-08",2,1,null,"zzz",0,0,0,0,null,null,null,null,null,null,null,null,null,null,null,null,null,null,null,null,null,null,null,null,{"$f":"IF(Lotsen!A147=\"\",\"zzz\",Lotsen!A147)","v":"zzz"}]
[null,"",null,"2025-02-09",3,2,null,"zzz",0,0,0,0,null,null,null,null,null,null,null,null,null,null,null,null,null,null,null,null,null,null,null,null,{"$f":"IF(Lotsen!A148=\"\",\"zzz\",Lotsen!A148)","v":"zzz"}]
[null,"",null,"2025-02-09",3,2,null,"zzz",0,0,0,0,null,null,null,null,null,null,null,null,null,null,null,null,null,null,null,null,null,null,null,null,{"$f":"IF(Lotsen!A149=\"\",\"zzz\",Lotsen!A149)","v":"zzz"}]
[null,"",null,"2025-02-09",2,1,null,"zzz",0,0,0,0,null,null,null,null,null,null,null,null,null,null,null,null,null,null,null,null,null,null,null,null,{"$f":"IF(Lotsen!A150=\"\",\"zzz\",Lotsen!A150)","v":"zzz"}]
[null,"",null,"2025-02-09",2,1,null,"zzz",0,0,0,0,null,null,null,null,null,null,null,null,null,null,null,null,null,null,null,null,null,null,null,null,{"$f":"IF(Lotsen!A151=\"\",\"zzz\",Lotsen!A151)","v":"zzz"}]
[null,"",null,"2025-02-09",4,3,null,"zzz",0,0,0,0,null,null,null,null,null,null,null,null,null,null,null,null,null,null,null,null,null,null,null,null,{"$f":"IF(Lotsen!A152=\"\",\"zzz\",Lotsen!A152)","v":"zzz"}]
[null,"",null,"2025-02-09",4,3,null,"zzz",0,0,0,0,null,null,null,null,null,null,null,null,null,null,null,null,null,null,null,null,null,null,null,null,{"$f":"IF(Lotsen!A153=\"\",\"zzz\",Lotsen!A153)","v":"zzz"}]
[null,"",null,"2025-02-09",3,2,null,"zzz",0,0,0,0,null,null,null,null,null,null,null,null,null,null,null,null,null,null,null,null,null,null,null,null,{"$f":"IF(Lotsen!A154=\"\",\"zzz\",Lotsen!A154)","v":"zzz"}]
[null,"",null,"2025-02-09",3,2,null,"zzz",0,0,0,0,null,null,null,null,null,null,null,null,null,null,null,null,null,null,null,null,null,null,null,null,{"$f":"IF(Lotsen!A155=\"\",\"zzz\",Lotsen!A155)","v":"zzz"}]
[null,"",null,"2025-02-09",3,2,null,"zzz",0,0,0,0,null,null,null,null,null,null,null,null,null,null,null,null,null,null,null,null,null,null,null,null,{"$f":"IF(Lotsen!A156=\"\",\"zzz\",Lotsen!A156)","v":"zzz"}]
[null,"",null,"2025-02-09",4,3,null,"zzz",0,0,0,0,null,null,null,null,null,null,null,null,null,null,null,null,null,null,null,null,null,null,null,null,{"$f":"IF(Lotsen!A157=\"\",\"zzz\",Lotsen!A157)","v":"zzz"}]
[null,"",null,"2025-02-09",4,3,null,"zzz",0,0,0,0,null,null,null,null,null,null,null,null,null,null,null,null,null,null,null,null,null,null,null,null,{"$f":"IF(Lotsen!A158=\"\",\"zzz\",Lotsen!A158)","v":"zzz"}]
[null,"",null,"2025-02-09",2,1,null,"zzz",0,0,0,0,null,null,null,null,null,null,null,null,null,null,null,null,null,null,null,null,null,null,null,null,{"$f":"IF(Lotsen!A159=\"\",\"zzz\",Lotsen!A159)","v":"zzz"}]
[null,"",null,"2025-02-09",4,3,null,"zzz",0,0,0,0,null,null,null,null,null,null,null,null,null,null,null,null,null,null,null,null,null,null,null,null,{"$f":"IF(Lotsen!A160=\"\",\"zzz\",Lotsen!A160)","v":"zzz"}]
[null,"",null,"2025-02-09",4,3,null,"zzz",0,0,0,0,null,null,null,null,null,null,null,null,null,null,null,null,null,null,null,null,null,null,null,null,{"$f":"IF(Lotsen!A161=\"\",\"zzz\",Lotsen!A161)","v":"zzz"}]
[null,"",null,"2025-02-09",5,4,null,"zzz",0,0,0,0,null,null,null,null,null,null,null,null,null,null,null,null,null,null,null,null,null,null,null,null,{"$f":"IF(Lotsen!A162=\"\",\"zzz\",Lotsen!A162)","v":"zzz"}]
[null,"",null,"2025-02-09",4,3,null,"zzz",0,0,0,0,null,null,null,null,null,null,null,null,null,null,null,null,null,null,null,null,null,null,null,null,{"$f":"IF(Lotsen!A163=\"\",\"zzz\",Lotsen!A163)","v":"zzz"}]
[null,"",null,"2025-02-09",4,3,null,"zzz",0,0,0,0,null,null,null,null,null,null,null,null,null,null,null,null,null,null,null,null,null,null,null,null,{"$f":"IF(Lotsen!A164=\"\",\"zzz\",Lotsen!A164)","v":"zzz"}]
[null,"",null,"2025-02-09",2,1,null,"zzz",0,0,0,0,null,null,null,null,null,null,null,null,null,null,null,null,null,null,null,null,null,null,null,null,{"$f":"IF(Lotsen!A165=\"\",\"zzz\",Lotsen!A165)","v":"zzz"}]
[null,"",null,"2025-02-10",2,1,null,"zzz",0,0,0,0,null,null,null,null,null,null,null,null,null,null,null,null,null,null,null,null,null,null,null,null,{"$f":"IF(Lotsen!A166=\"\",\"zzz\",Lotsen!A166)","v":"zzz"}]
[null,"",null,"2025-02-10",3,2,null,"zzz",0,0,0,0,null,null,null,null,null,null,null,null,null,null,null,null,null,null,null,null,null,null,null,null,{"$f":"IF(Lotsen!A167=\"\",\"zzz\",Lotsen!A167)","v":"zzz"}]
[null,"",null,"2025-02-10",3,2,null,"zzz",0,0,0,0,null,null,null,null,null,null,null,null,null,null,null,null,null,null,null,null,null,null,null,null,{"$f":"IF(Lotsen!A168=\"\",\"zzz\",Lotsen!A168)","v":"zzz"}]
[null,"",null,"2025-02-10",3,2,null,"zzz",0,0,0,0,null,null,null,null,null,null,null,null,null,null,null,null,null,null,null,null,null,null,null,null,{"$f":"IF(Lotsen!A169=\"\",\"zzz\",Lotsen!A169)","v":"zzz"}]
[null,"",null,"2025-02-10",5,4,null,"zzz",0,0,0,0,null,null,null,null,null,null,null,null,null,null,null,null,null,null,null,null,null,null,null,null,{"$f":"IF(Lotsen!A170=\"\",\"zzz\",Lotsen!A170)","v":"zzz"}]
[null,"",null,"2025-02-10",5,4,null,"zzz",0,0,0,0,null,null,null,null,null,null,null,null,null,null,null,null,null,null,null,null,null,null,null,null,{"$f":"IF(Lotsen!A171=\"\",\"zzz\",Lotsen!A171)","v":"zzz"}]
[null,"",null,"2025-02-10",3,2,null,"zzz",0,0,0,0,null,null,null,null,null,null,null,null,null,null,null,null,null,null,null,null,null,null,null,null,{"$f":"IF(Lotsen!A172=\"\",\"zzz\",Lotsen!A172)","v":"zzz"}]
[null,"",null,"2025-02-10",2,1,null,"zzz",0,0,0,0,null,null,null,null,null,null,null,null,null,null,null,null,null,null,null,null,null,null,null,null,{"$f":"IF(Lotsen!A173=\"\",\"zzz\",Lotsen!A173)","v":"zzz"}]
[null,"",null,"2025-02-10",2,1,null,"zzz",0,0,0,0,null,null,null,null,null,null,null,null,null,null,null,null,null,null,null,null,null,null,null,null,{"$f":"IF(Lotsen!A174=\"\",\"zzz\",Lotsen!A174)","v":"zzz"}]
[null,"",null,"2025-02-10",2,1,null,"zzz",0,0,0,0,null,null,null,null,null,null,null,null,null,null,null,null,null,null,null,null,null,null,null,null,{"$f":"IF(Lotsen!A175=\"\",\"zzz\",Lotsen!A175)","v":"zzz"}]
[null,"",null,"2025-02-10",2,1,null,"zzz",0,0,0,0,null,null,null,null,null,null,null,null,null,null,null,null,null,null,null,null,null,null,null,null,{"$f":"IF(Lotsen!A176=\"\",\"zzz\",Lotsen!A176)","v":"zzz"}]
[null,"",null,"2025-02-10",3,2,null,"zzz",0,0,0,0,null,null,null,null,null,null,null,null,null,null,null,null,null,null,null,null,null,null,null,null,{"$f":"IF(Lotsen!A177=\"\",\"zzz\",Lotsen!A177)","v":"zzz"}]
[null,"",null,"2025-02-10",2,1,null,"zzz",0,0,0,0,null,null,null,null,null,null,null,null,null,null,null,null,null,null,null,null,null,null,null,null,{"$f":"IF(Lotsen!A178=\"\",\"zzz\",Lotsen!A178)","v":"zzz"}]
[null,"",null,"2025-02-10",2,1,null,"zzz",0,0,0,0,null,null,null,null,null,null,null,null,null,null,null,null,null,null,null,null,null,null,null,null,{"$f":"IF(Lotsen!A179=\"\",\"zzz\",Lotsen!A179)","v":"zzz"}]
[null,"",null,"2025-02-10",2,1,null,"zzz",0,0,0,0,null,null,null,null,null,null,null,null,null,null,null,null,null,null,null,null,null,null,null,null,{"$f":"IF(Lotsen!A180=\"\",\"zzz\",Lotsen!A180)","v":"zzz"}]
[null,"",null,"2025-02-10",3,2,null,"zzz",0,0,0,0,null,null,null,null,null,null,null,null,null,null,null,null,null,null,null,null,null,null,null,null,{"$f":"IF(Lotsen!A181=\"\",\"zzz\",Lotsen!A181)","v":"zzz"}]
[null,"",null,"2025-02-10",4,3,null,"zzz",0,0,0,0,null,null,null,null,null,null,null,null,null,null,null,null,null,null,null,null,null,null,null,null,{"$f":"IF(Lotsen!A182=\"\",\"zzz\",Lotsen!A182)","v":"zzz"}]
[null,"",null,"2025-02-10",2,1,null,"zzz",0,0,0,0,null,null,null,null,null,null,null,null,null,null,null,null,null,null,null,null,null,null,null,null,{"$f":"IF(Lotsen!A183=\"\",\"zzz\",Lotsen!A183)","v":"zzz"}]
[null,"",null,"2025-02-10",2,1,null,"zzz",0,0,0,0,null,null,null,null,null,null,null,null,null,null,null,null,null,null,null,null,null,null,null,null,{"$f":"IF(Lotsen!A184=\"\",\"zzz\",Lotsen!A184)","v":"zzz"}]
[null,"",null,"2025-02-10",5,4,null,"zzz",0,0,0,0,null,null,null,null,null,null,null,null,null,null,null,null,null,null,null,null,null,null,null,null,{"$f":"IF(Lotsen!A185=\"\",\"zzz\",Lotsen!A185)","v":"zzz"}]
[null,"",null,"2025-02-11",5,4,null,"zzz",0,0,0,0,null,null,null,null,null,null,null,null,null,null,null,null,null,null,null,null,null,null,null,null,{"$f":"IF(Lotsen!A186=\"\",\"zzz\",Lotsen!A186)","v":"zzz"}]
[null,"",null,"2025-02-11",2,1,null,"zzz",0,0,0,0,null,null,null,null,null,null,null,null,null,null,null,null,null,null,null,null,null,null,null,null,{"$f":"IF(Lotsen!A187=\"\",\"zzz\",Lotsen!A187)","v":"zzz"}]
[null,"",null,"2025-02-11",5,4,null,"zzz",0,0,0,0,null,null,null,null,null,null,null,null,null,null,null,null,null,null,null,null,null,null,null,null,{"$f":"IF(Lotsen!A188=\"\",\"zzz\",Lotsen!A188)","v":"zzz"}]
[null,"",null,"2025-02-11",5,4,null,"zzz",0,0,0,0,null,null,null,null,null,null,null,null,null,null,null,null,null,null,null,null,null,null,null,null,{"$f":"IF(Lotsen!A189=\"\",\"zzz\",Lotsen!A189)","v":"zzz"}]
[null,"",null,"2025-02-11",4,3,null,"zzz",0,0,0,0,null,null,null,null,null,null,null,null,null,null,null,null,null,null,null,null,null,null,null,null,{"$f":"IF(Lotsen!A190=\"\",\"zzz\",Lotsen!A190)","v":"zzz"}]
[null,"",null,null,null,"",null,"zzz",0,0,0,0,null,null,null,null,null,null,null,null,null,null,null,null,null,null,null,null,null,null,null,null,{"$f":"IF(Lotsen!A191=\"\",\"zzz\",Lotsen!A191)","v":"zzz"}]
[null,"",null,null,null,"",null,"zzz",0,0,0,0,null,null,null,null,null,null,null,null,null,null,null,null,null,null,null,null,null,null,null,null,{"$f":"IF(Lotsen!A192=\"\",\"zzz\",Lotsen!A192)","v":"zzz"}]
[null,"",null,null,null,"",null,"zzz",0,0,0,0,null,null,null,null,null,null,null,null,null,null,null,null,null,null,null,null,null,null,null,null,{"$f":"IF(Lotsen!A193=\"\",\"zzz\",Lotsen!A193)","v":"zzz"}]
[null,"",null,null,null,"",null,"zzz",0,0,0,0,null,null,null,null,null,null,null,null,null,null,null,null,null,null,null,null,null,null,null,null,{"$f":"IF(Lotsen!A194=\"\",\"zzz\",Lotsen!A194)","v":"zzz"}]
[null,"",null,null,null,{"$f":"IF(D198=\"\",\"\",E198-1)","v":""},null,"zzz",{"$f":"SUMIF($C$5:$C$1000,H198,$F$5:$F$1000)+L198","v":0},{"$f":"IF(I198>=60,1,0)","v":0},{"$f":"IF(J198>0,I198-60,IF(J198=0,I198,0))","v":0},0,null,null,null,null,null,null,null,null,null,null,null,null,null,null,null,null,null,null,null,null,{"$f":"IF(Lotsen!A195=\"\",\"zzz\",Lotsen!A195)","v":"zzz"}]
[null,{"$f":"IF(C199=\"\",\"\",B198+1)","v":""},null,null,null,"",null,"zzz",0,0,0,0,null,null,null,null,null,null,null,null,null,null,null,null,null,null,null,null,null,null,null,null,{"$f":"IF(Lotsen!A196=\"\",\"zzz\",Lotsen!A196)","v":"zzz"}]
[null,"",null,null,null,"",null,"zzz",0,0,0,0,null,null,null,null,null,null,null,null,null,null,null,null,null,null,null,null,null,null,null,null,{"$f":"IF(Lotsen!A197=\"\",\"zzz\",Lotsen!A197)","v":"zzz"}]
[null,"",null,null,null,"",null,"zzz",0,0,0,0,null,null,null,null,null,null,null,null,null,null,null,null,null,null,null,null,null,null,null,null,{"$f":"IF(Lotsen!A198=\"\",\"zzz\",Lotsen!A198)","v":"zzz"}]
[null,"",null,null,null,"",null,"zzz",0,0,0,0,null,null,null,null,null,null,null,null,null,null,null,null,null,null,null,null,null,null,null,null,{"$f":"IF(Lotsen!A199=\"\",\"zzz\",Lotsen!A199)","v":"zzz"}]
[null,"",null,null,null,"",null,"zzz",0,0,0,0,null,null,null,null,null,null,null,null,null,null,null,null,null,null,null,null,null,null,null,null,{"$f":"IF(Lotsen!A200=\"\",\"zzz\",Lotsen!A200)","v":"zzz"}]
[null,"",null,null,null,"",null,"zzz",0,0,0,0,null,null,null,null,null,null,null,null,null,null,null,null,null,null,null,null,null,null,null,null,{"$f":"IF(Lotsen!A201=\"\",\"zzz\",Lotsen!A201)","v":"zzz"}]
[null,"",null,null,null,"",null,"zzz",0,0,0,0,null,null,null,null,null,null,null,null,null,null,null,null,null,null,null,null,null,null,null,null,{"$f":"IF(Lotsen!A202=\"\",\"zzz\",Lotsen!A202)","v":"zzz"}]
[null,"",null,null,null,"",null,"zzz",0,0,0,0,null,null,null,null,null,null,null,null,null,null,null,null,null,null,null,null,null,null,null,null,{"$f":"IF(Lotsen!A203=\"\",\"zzz\",Lotsen!A203)","v":"zzz"}]
[null,"",null,null,null,"",null,"zzz",0,0,0,0,null,null,null,null,null,null,null,null,null,null,null,null,null,null,null,null,null,null,null,null,{"$f":"IF(Lotsen!A204=\"\",\"zzz\",Lotsen!A204)","v":"zzz"}]
[null,"",null,null,null,"",null,"zzz",0,0,0,0,null,null,null,null,null,null,null,null,null,null,null,null,null,null,null,null,null,null,null,null,{"$f":"IF(Lotsen!A205=\"\",\"zzz\",Lotsen!A205)","v":"zzz"}]
[null,"",null,null,null,"",null,"zzz",0,0,0,0,null,null,null,null,null,null,null,null,null,null,null,null,null,null,null,null,null,null,null,null,{"$f":"IF(Lotsen!A206=\"\",\"zzz\",Lotsen!A206)","v":"zzz"}]
[null,"",null,null,null,"",null,"zzz",0,0,0,0,null,null,null,null,null,null,null,null,null,null,null,null,null,null,null,null,null,null,null,null,{"$f":"IF(Lotsen!A207=\"\",\"zzz\",Lotsen!A207)","v":"zzz"}]
[null,"",null,null,null,"",null,"zzz",0,0,0,0,null,null,null,null,null,null,null,null,null,null,null,null,null,null,null,null,null,null,null,null,{"$f":"IF(Lotsen!A208=\"\",\"zzz\",Lotsen!A208)","v":"zzz"}]
[null,"",null,null,null,"",null,"zzz",0,0,0,0,null,null,null,null,null,null,null,null,null,null,null,null,null,null,null,null,null,null,null,null,{"$f":"IF(Lotsen!A209=\"\",\"zzz\",Lotsen!A209)","v":"zzz"}]
[null,{"$f":"IF(C213=\"\",\"\",B212+1)","v":""},null,null,null,{"$f":"IF(D213=\"\",\"\",E213-1)","v":""},null,"zzz",0,0,0,0,null,null,null,null,null,null,null,null,null,null,null,null,null,null,null,null,null,null,null,null,{"$f":"IF(Lotsen!A210=\"\",\"zzz\",Lotsen!A210)","v":"zzz"}]
[null,"",null,null,null,""]
[null,"",null,null,null,""]
[null,"",null,null,null,""]
[null,"",null,null,null,""]
[null,"",null,null,null,""]
[null,"",null,null,null,""]
[null,"",null,null,null,""]
[null,"",null,null,null,""]
[null,"",null,null,null,""]
[null,"",null,null,null,""]
[null,"",null,null,null,""]
[null,"",null,null,null,""]
[null,"",null,null,null,""]
[null,"",null,null,null,""]
[null,"",null,null,null,""]
[null,"",null,null,null,""]
[null,"",null,null,null,""]
[null,"",null,null,null,""]
[null,"",null,null,null,""]
[null,"",null,null,null,""]
[null,"",null,null,null,""]
[null,"",null,null,null,""]
[null,"",null,null,null,""]
[null,"",null,null,null,""]
[null,"",null,null,null,""]
[null,"",null,null,null,""]
[null,"",null,null,null,""]
[null,"",null,null,null,""]
[null,"",null,null,null,""]
[null,"",null,null,null,""]
[null,"",null,null,null,""]
[null,"",null,null,null,""]
[null,"",null,null,null,""]
[null,"",null,null,null,""]
[null,"",null,null,null,""]
[null,"",null,null,null,""]
[null,"",null,null,null,""]
[null,"",null,null,null,""]
[null,"",null,null,null,""]
[null,"",null,null,null,""]
[null,"",null,null,null,""]
[null,"",null,null,null,""]
[null,"",null,null,null,""]
[null,"",null,null,null,""]
[null,"",null,null,null,""]
[null,"",null,null,null,""]
[null,"",null,null,null,""]
[null,"",null,null,null,""]
[null,"",null,null,null,""]
[null,"",null,null,null,""]
[null,"",null,null,null,""]
[null,"",null,null,null,""]
[null,"",null,null,null,""]
[null,"",null,null,null,""]
[null,"",null,null,null,""]
[null,"",null,null,null,""]
[null,"",null,null,null,""]
[null,"",null,null,null,""]
[null,"",null,null,null,""]
[null,"",null,null,null,""]
[null,"",null,null,null,""]
[null,"",null,null,null,""]
[null,"",null,null,null,""]
[null,{"$f":"IF(C277=\"\",\"\",B276+1)","v":""},null,null,null,{"$f":"IF(D277=\"\",\"\",E277-1)","v":""}]
[null,"",null,null,null,""]
[null,"",null,null,null,""]
[null,"",null,null,null,""]
[null,"",null,null,null,""]
[null,"",null,null,null,""]
[null,"",null,null,null,""]
[null,"",null,null,null,""]
[null,"",null,null,null,""]
[null,"",null,null,null,""]
[null,"",null,null,null,""]
[null,"",null,null,null,""]
[null,"",null,null,null,""]
[null,"",null,null,null,""]
[null,"",null,null,null,""]
[null,"",null,null,null,""]
[null,"",null,null,null,""]
[null,"",null,null,null,""]
[null,"",null,null,null,""]
[null,"",null,null,null,""]
[null,"",null,null,null,""]
[null,"",null,null,null,""]
[null,"",null,null,null,""]
[null,"",null,null,null,""]
[null,"",null,null,null,""]
[null,"",null,null,null,""]
[null,"",null,null,null,""]
[null,"",null,null,null,""]
[null,"",null,null,null,""]
[null,"",null,null,null,""]
[null,"",null,null,null,""]
[null,"",null,null,null,""]
[null,"",null,null,null,""]
[null,"",null,null,null,""]
[null,"",null,null,null,""]
[null,"",null,null,null,""]
[null,"",null,null,null,""]
[null,"",null,null,null,""]
[null,"",null,null,null,""]
[null,"",null,null,null,""]
[null,"",null,null,null,""]
[null,"",null,null,null,""]
[null,"",null,null,null,""]
[null,"",null,null,null,""]
[null,"",null,null,null,""]
[null,"",null,null,null,""]
[null,"",null,null,null,""]
[null,"",null,null,null,""]
[null,"",null,null,null,""]
[null,"",null,null,null,""]
[null,"",null,null,null,""]
[null,"",null,null,null,""]
[null,"",null,null,null,""]
[null,"",null,null,null,""]
[null,"",null,null,null,""]
[null,"",null,null,null,""]
[null,"",null,null,null,""]
[null,"",null,null,null,""]
[null,"",null,null,null,""]
[null,"",null,null,null,""]
[null,"",null,null,null,""]
[null,"",null,null,null,""]
[null,"",null,null,null,""]
[null,"",null,null,null,""]
[null,{"$f":"IF(C341=\"\",\"\",B340+1)","v":""},null,null,null,{"$f":"IF(D341=\"\",\"\",E341-1)","v":""}]
[null,"",null,null,null,""]
[null,"",null,null,null,""]
[null,"",null,null,null,""]
[null,"",null,null,null,""]
[null,"",null,null,null,""]
[null,"",null,null,null,""]
[null,"",null,null,null,""]
[null,"",null,null,null,""]
[null,"",null,null,null,""]
[null,"",null,null,null,""]
[null,"",null,null,null,""]
[null,"",null,null,null,""]
[null,"",null,null,null,""]
[null,"",null,null,null,""]
[null,"",null,null,null,""]
[null,"",null,null,null,""]
[null,"",null,null,null,""]
[null,"",null,null,null,""]
[null,"",null,null,null,""]
[null,"",null,null,null,""]
[null,"",null,null,null,""]
[null,"",null,null,null,""]
[null,"",null,null,null,""]
[null,"",null,null,null,""]
[null,"",null,null,null,""]
[null,"",null,null,null,""]
[null,"",null,null,null,""]
[null,"",null,null,null,""]
[null,"",null,null,null,""]
[null,"",null,null,null,""]
[null,"",null,null,null,""]
[null,"",null,null,null,""]
[null,"",null,null,null,""]
[null,"",null,null,null,""]
[null,"",null,null,null,""]
[null,"",null,null,null,""]
[null,"",null,null,null,""]
[null,"",null,null,null,""]
[null,"",null,null,null,""]
[null,"",null,null,null,""]
[null,"",null,null,null,""]
[null,"",null,null,null,""]
[null,"",null,null,null,""]
[null,"",null,null,null,""]
[null,"",null,null,null,""]
[null,"",null,null,null,""]
[null,"",null,null,null,""]
[null,"",null,null,null,""]
[null,"",null,null,null,""]
[null,"",null,null,null,""]
[null,"",null,null,null,""]
[null,"",null,null,null,""]
[null,"",null,null,null,""]
[null,"",null,null,null,""]
[null,"",null,null,null,""]
[null,"",null,null,null,""]
[null,"",null,null,null,""]
[null,"",null,null,null,""]
[null,"",null,null,null,""]
[null,"",null,null,null,""]
[null,"",null,null,null,""]
[null,"",null,null,null,""]
[null,"",null,null,null,""]
[null,{"$f":"IF(C405=\"\",\"\",B404+1)","v":""},null,null,null,{"$f":"IF(D405=\"\",\"\",E405-1)","v":""}]
[null,"",null,null,null,""]
[null,"",null,null,null,""]
[null,"",null,null,null,""]
[null,"",null,null,null,""]
[null,"",null,null,null,""]
[null,"",null,null,null,""]
[null,"",null,null,null,""]
[null,"",null,null,null,""]
[null,"",null,null,null,""]
[null,"",null,null,null,""]
[null,"",null,null,null,""]
[null,"",null,null,null,""]
[null,"",null,null,null,""]
[null,"",null,null,null,""]
[null,"",null,null,null,""]
[null,"",null,null,null,""]
[null,"",null,null,null,""]
[null,"",null,null,null,""]
[null,"",null,null,null,""]
[null,"",null,null,null,""]
[null,"",null,null,null,""]
[null,"",null,null,null,""]
[null,"",null,null,null,""]
[null,"",null,null,null,""]
[null,"",null,null,null,""]
[null,"",null,null,null,""]
[null,"",null,null,null,""]
[null,"",null,null,null,""]
[null,"",null,null,null,""]
[null,"",null,null,null,""]
[null,"",null,null,null,""]
[null,"",null,null,null,""]
[null,"",null,null,null,""]
[null,"",null,null,null,""]
[null,"",null,null,null,""]
[null,"",null,null,null,""]
[null,"",null,null,null,""]
[null,"",null,null,null,""]
[null,"",null,null,null,""]
[null,"",null,null,null,""]
[null,"",null,null,null,""]
[null,"",null,null,null,""]
[null,"",null,null,null,""]
[null,"",null,null,null,""]
[null,"",null,null,null,""]
[null,"",null,null,null,""]
[null,"",null,null,null,""]
[null,"",null,null,null,""]
[null,"",null,null,null,""]
[null,"",null,null,null,""]
[null,"",null,null,null,""]
[null,"",null,null,null,""]
[null,"",null,null,null,""]
[null,"",null,null,null,""]
[null,"",null,null,null,""]
[null,"",null,null,null,""]
[null,"",null,null,null,""]
[null,"",null,null,null,""]
[null,"",null,null,null,""]
[null,"",null,null,null,""]
[null,"",null,null,null,""]
[null,"",null,null,null,""]
[null,"",null,null,null,""]
[null,{"$f":"IF(C469=\"\",\"\",B468+1)","v":""},null,null,null,{"$f":"IF(D469=\"\",\"\",E469-1)","v":""}]
[null,"",null,null,null,""]
[null,"",null,null,null,""]
[null,"",null,null,null,""]
[null,"",null,null,null,""]
[null,"",null,null,null,""]
[null,"",null,null,null,""]
[null,"",null,null,null,""]
[null,"",null,null,null,""]
[null,"",null,null,null,""]
[null,"",null,null,null,""]
[null,"",null,null,null,""]
[null,"",null,null,null,""]
[null,"",null,null,null,""]
[null,"",null,null,null,""]
[null,"",null,null,null,""]
[null,"",null,null,null,""]
[null,"",null,null,null,""]
[null,"",null,null,null,""]
[null,"",null,null,null,""]
[null,"",null,null,null,""]
[null,"",null,null,null,""]
[null,"",null,null,null,""]
[null,"",null,null,null,""]
[null,"",null,null,null,""]
[null,"",null,null,null,""]
[null,"",null,null,null,""]
[null,"",null,null,null,""]
[null,"",null,null,null,""]
[null,"",null,null,null,""]
[null,"",null,null,null,""]
[null,{"$f":"IF(C500=\"\",\"\",B499+1)","v":""},null,null,null,{"$f":"IF(D500=\"\",\"\",E500-1)","v":""}]
[null,"",null,null,null,""]
[null,"",null,null,null,""]
[null,"",null,null,null,""]
[null,"",null,null,null,""]
[null,"",null,null,null,""]
[null,"",null,null,null,""]
[null,"",null,null,null,""]
[null,"",null,null,null,""]
[null,"",null,null,null,""]
[null,"",null,null,null,""]
[null,"",null,null,null,""]
[null,"",null,null,null,""]
[null,"",null,null,null,""]
[null,"",null,null,null,""]
[null,"",null,null,null,""]
[null,"",null,null,null,""]
[null,"",null,null,null,""]
[null,"",null,null,null,""]
[null,"",null,null,null,""]
[null,"",null,null,null,""]
[null,"",null,null,null,""]
[null,"",null,null,null,""]
[null,"",null,null,null,""]
[null,"",null,null,null,""]
[null,"",null,null,null,""]
[null,"",null,null,null,""]
[null,"",null,null,null,""]
[null,"",null,null,null,""]
[null,"",null,null,null,""]
[null,"",null,null,null,""]
[null,"",null,null,null,""]
[null,"",null,null,null,""]
[null,"",null,null,null,""]
[null,"",null,null,null,""]
[null,"",null,null,null,""]
[null,"",null,null,null,""]
[null,"",null,null,null,""]
[null,"",null,null,null,""]
[null,"",null,null,null,""]
[null,"",null,null,null,""]
[null,"",null,null,null,""]
[null,"",null,null,null,""]
[null,"",null,null,null,""]
[null,"",null,null,null,""]
[null,"",null,null,null,""]
[null,"",null,null,null,""]
[null,"",null,null,null,""]
[null,"",null,null,null,""]
[null,"",null,null,null,""]
[null,"",null,null,null,""]
[null,"",null,null,null,""]
[null,"",null,null,null,""]
[null,"",null,null,null,""]
[null,"",null,null,null,""]
[null,"",null,null,null,""]
[null,"",null,null,null,""]
[null,"",null,null,null,""]
[null,"",null,null,null,""]
[null,"",null,null,null,""]
[null,"",null,null,null,""]
[null,"",null,null,null,""]
[null,"",null,null,null,""]
[null,"",null,null,null,""]
[null,{"$f":"IF(C564=\"\",\"\",B563+1)","v":""},null,null,null,{"$f":"IF(D564=\"\",\"\",E564-1)","v":""}]
[null,"",null,null,null,""]
[null,"",null,null,null,""]
[null,"",null,null,null,""]
[null,"",null,null,null,""]
[null,"",null,null,null,""]
[null,"",null,null,null,""]
[null,"",null,null,null,""]
[null,"",null,null,null,""]
[null,"",null,null,null,""]
[null,"",null,null,null,""]
[null,"",null,null,null,""]
[null,"",null,null,null,""]
[null,"",null,null,null,""]
[null,"",null,null,null,""]
[null,"",null,null,null,""]
[null,"",null,null,null,""]
[null,"",null,null,null,""]
[null,"",null,null,null,""]
[null,"",null,null,null,""]
[null,"",null,null,null,""]
[null,"",null,null,null,""]
[null,"",null,null,null,""]
[null,"",null,null,null,""]
[null,"",null,null,null,""]
[null,"",null,null,null,""]
[null,"",null,null,null,""]
[null,"",null,null,null,""]
[null,"",null,null,null,""]
[null,"",null,null,null,""]
[null,"",null,null,null,""]
[null,"",null,null,null,""]
[null,"",null,null,null,""]
[null,"",null,null,null,""]
[null,"",null,null,null,""]
[null,"",null,null,null,""]
[null,"",null,null,null,""]
[null,"",null,null,null,""]
[null,"",null,null,null,""]
[null,"",null,null,null,""]
[null,"",null,null,null,""]
[null,"",null,null,null,""]
[null,"",null,null,null,""]
[null,"",null,null,null,""]
[null,"",null,null,null,""]
[null,"",null,null,null,""]
[null,"",null,null,null,""]
[null,"",null,null,null,""]
[null,"",null,null,null,""]
[null,"",null,null,null,""]
[null,"",null,null,null,""]
[null,"",null,null,null,""]
[null,"",null,null,null,""]
[null,"",null,null,null,""]
[null,"",null,null,null,""]
[null,"",null,null,null,""]
[null,"",null,null,null,""]
[null,"",null,null,null,""]
[null,"",null,null,null,""]
[null,"",null,null,null,""]
[null,"",null,null,null,""]
[null,"",null,null,null,""]
[null,"",null,null,null,""]
[null,"",null,null,null,""]
[null,{"$f":"IF(C628=\"\",\"\",B627+1)","v":""},null,null,null,{"$f":"IF(D628=\"\",\"\",E628-1)","v":""}]
[null,"",null,null,null,""]
[null,"",null,null,null,""]
[null,"",null,null,null,""]
[null,"",null,null,null,""]
[null,"",null,null,null,""]
[null,"",null,null,null,""]
[null,"",null,null,null,""]
[null,"",null,null,null,""]
[null,"",null,null,null,""]
[null,"",null,null,null,""]
[null,"",null,null,null,""]
[null,"",null,null,null,""]
[null,"",null,null,null,""]
[null,"",null,null,null,""]
[null,"",null,null,null,""]
[null,"",null,null,null,""]
[null,"",null,null,null,""]
[null,"",null,null,null,""]
[null,"",null,null,null,""]
[null,"",null,null,null,""]
[null,"",null,null,null,""]
[null,"",null,null,null,""]
[null,"",null,null,null,""]
[null,"",null,null,null,""]
[null,"",null,null,null,""]
[null,"",null,null,null,""]
[null,"",null,null,null,""]
[null,"",null,null,null,""]
[null,"",null,null,null,""]
[null,"",null,null,null,""]
[null,"",null,null,null,""]
[null,"",null,null,null,""]
[null,"",null,null,null,""]
[null,"",null,null,null,""]
[null,"",null,null,null,""]
[null,"",null,null,null,""]
[null,"",null,null,null,""]
[null,"",null,null,null,""]
[null,"",null,null,null,""]
[null,"",null,null,null,""]
[null,"",null,null,null,""]
[null,"",null,null,null,""]
[null,"",null,null,null,""]
[null,"",null,null,null,""]
[null,"",null,null,null,""]
[null,"",null,null,null,""]
[null,"",null,null,null,""]
[null,"",null,null,null,""]
[null,"",null,null,null,""]
[null,"",null,null,null,""]
[null,"",null,null,null,""]
[null,"",null,null,null,""]
[null,"",null,null,null,""]
[null,"",null,null,null,""]
[null,"",null,null,null,""]
[null,"",null,null,null,""]
[null,"",null,null,null,""]
[null,"",null,null,null,""]
[null,"",null,null,null,""]
[null,"",null,null,null,""]
[null,"",null,null,null,""]
[null,"",null,null,null,""]
[null,"",null,null,null,""]
[null,{"$f":"IF(C692=\"\",\"\",B691+1)","v":""},null,null,null,{"$f":"IF(D692=\"\",\"\",E692-1)","v":""}]
[null,"",null,null,null,""]
[null,"",null,null,null,""]
[null,"",null,null,null,""]
[null,"",null,null,null,""]
[null,"",null,null,null,""]
[null,"",null,null,null,""]
[null,"",null,null,null,""]
[null,"",null,null,null,""]
[null,"",null,null,null,""]
[null,"",null,null,null,""]
[null,"",null,null,null,""]
[null,"",null,null,null,""]
[null,"",null,null,null,""]
[null,"",null,null,null,""]
[null,"",null,null,null,""]
[null,"",null,null,null,""]
[null,"",null,null,null,""]
[null,"",null,null,null,""]
[null,"",null,null,null,""]
[null,"",null,null,null,""]
[null,"",null,null,null,""]
[null,"",null,null,null,""]
[null,"",null,null,null,""]
[null,"",null,null,null,""]
[null,"",null,null,null,""]
[null,"",null,null,null,""]
[null,"",null,null,null,""]
[null,"",null,null,null,""]
[null,"",null,null,null,""]
[null,"",null,null,null,""]
[null,"",null,null,null,""]
[null,"",null,null,null,""]
[null,"",null,null,null,""]
[null,"",null,null,null,""]
[null,"",null,null,null,""]
[null,"",null,null,null,""]
[null,"",null,null,null,""]
[null,"",null,null,null,""]
[null,"",null,null,null,""]
[null,"",null,null,null,""]
[null,"",null,null,null,""]
[null,"",null,null,null,""]
[null,"",null,null,null,""]
[null,"",null,null,null,""]
[null,"",null,null,null,""]
[null,"",null,null,null,""]
[null,"",null,null,null,""]
[null,"",null,null,null,""]
[null,"",null,null,null,""]
[null,"",null,null,null,""]
[null,"",null,null,null,""]
[null,"",null,null,null,""]
[null,"",null,null,null,""]
[null,"",null,null,null,""]
[null,"",null,null,null,""]
[null,"",null,null,null,""]
[null,"",null,null,null,""]
[null,"",null,null,null,""]
[null,"",null,null,null,""]
[null,"",null,null,null,""]
[null,"",null,null,null,""]
[null,"",null,null,null,""]
[null,"",null,null,null,""]
[null,{"$f":"IF(C756=\"\",\"\",B755+1)","v":""},null,null,null,{"$f":"IF(D756=\"\",\"\",E756-1)","v":""}]
[null,"",null,null,null,""]
[null,"",null,null,null,""]
[null,"",null,null,null,""]
[null,"",null,null,null,""]
[null,"",null,null,null,""]
[null,"",null,null,null,""]
[null,"",null,null,null,""]
[null,"",null,null,null,""]
[null,"",null,null,null,""]
[null,"",null,null,null,""]
[null,"",null,null,null,""]
[null,"",null,null,null,""]
[null,"",null,null,null,""]
[null,"",null,null,null,""]
[null,"",null,null,null,""]
[null,"",null,null,null,""]
[null,"",null,null,null,""]
[null,"",null,null,null,""]
[null,"",null,null,null,""]
[null,"",null,null,null,""]
[null,"",null,null,null,""]
[null,"",null,null,null,""]
[null,"",null,null,null,""]
[null,"",null,null,null,""]
[null,"",null,null,null,""]
[null,"",null,null,null,""]
[null,"",null,null,null,""]
[null,"",null,null,null,""]
[null,"",null,null,null,""]
[null,"",null,null,null,""]
[null,"",null,null,null,""]
[null,"",null,null,null,""]
[null,"",null,null,null,""]
[null,"",null,null,null,""]
[null,"",null,null,null,""]
[null,"",null,null,null,""]
[null,"",null,null,null,""]
[null,"",null,null,null,""]
[null,"",null,null,null,""]
[null,"",null,null,null,""]
[null,"",null,null,null,""]
[null,"",null,null,null,""]
[null,"",null,null,null,""]
[null,"",null,null,null,""]
[null,"",null,null,null,""]
[null,"",null,null,null,""]
[null,"",null,null,null,""]
[null,"",null,null,null,""]
[null,"",null,null,null,""]
[null,"",null,null,null,""]
[null,"",null,null,null,""]
[null,"",null,null,null,""]
[null,"",null,null,null,""]
[null,"",null,null,null,""]
[null,"",null,null,null,""]
[null,"",null,null,null,""]
[null,"",null,null,null,""]
[null,"",null,null,null,""]
[null,"",null,null,null,""]
[null,"",null,null,null,""]
[null,"",null,null,null,""]
[null,"",null,null,null,""]
[null,"",null,null,null,""]
[null,{"$f":"IF(C820=\"\",\"\",B819+1)","v":""},null,null,null,{"$f":"IF(D820=\"\",\"\",E820-1)","v":""}]
[null,"",null,null,null,""]
[null,"",null,null,null,""]
[null,"",null,null,null,""]
[null,"",null,null,null,""]
[null,"",null,null,null,""]
[null,"",null,null,null,""]
[null,"",null,null,null,""]
[null,"",null,null,null,""]
[null,"",null,null,null,""]
[null,"",null,null,null,""]
[null,"",null,null,null,""]
[null,"",null,null,null,""]
[null,"",null,null,null,""]
[null,"",null,null,null,""]
[null,"",null,null,null,""]
[null,"",null,null,null,""]
[null,"",null,null,null,""]
[null,"",null,null,null,""]
[null,"",null,null,null,""]
[null,"",null,null,null,""]
[null,"",null,null,null,""]
[null,"",null,null,null,""]
[null,"",null,null,null,""]
[null,"",null,null,null,""]
[null,"",null,null,null,""]
[null,"",null,null,null,""]
[null,"",null,null,null,""]
[null,"",null,null,null,""]
[null,"",null,null,null,""]
[null,"",null,null,null,""]
[null,"",null,null,null,""]
[null,"",null,null,null,""]
[null,"",null,null,null,""]
[null,"",null,null,null,""]
[null,"",null,null,null,""]
[null,"",null,null,null,""]
[null,"",null,null,null,""]
[null,"",null,null,null,""]
[null,"",null,null,null,""]
[null,"",null,null,null,""]
[null,"",null,null,null,""]
[null,"",null,null,null,""]
[null,"",null,null,null,""]
[null,"",null,null,null,""]
[null,"",null,null,null,""]
[null,"",null,null,null,""]
[null,"",null,null,null,""]
[null,"",null,null,null,""]
[null,"",null,null,null,""]
[null,"",null,null,null,""]
[null,"",null,null,null,""]
[null,"",null,null,null,""]
[null,"",null,null,null,""]
[null,"",null,null,null,""]
[null,"",null,null,null,""]
[null,"",null,null,null,""]
[null,"",null,null,null,""]
[null,"",null,null,null,""]
[null,"",null,null,null,""]
[null,"",null,null,null,""]
[null,"",null,null,null,""]
[null,"",null,null,null,""]
[null,"",null,null,null,""]
[null,{"$f":"IF(C884=\"\",\"\",B883+1)","v":""},null,null,null,{"$f":"IF(D884=\"\",\"\",E884-1)","v":""}]
[null,"",null,null,null,""]
[null,"",null,null,null,""]
[null,"",null,null,null,""]
[null,"",null,null,null,""]
[null,"",null,null,null,""]
[null,"",null,null,null,""]
[null,"",null,null,null,""]
[null,"",null,null,null,""]
[null,"",null,null,null,""]
[null,"",null,null,null,""]
[null,"",null,null,null,""]
[null,"",null,null,null,""]
[null,"",null,null,null,""]
[null,"",null,null,null,""]
[null,"",null,null,null,""]
[null,"",null,null,null,""]
[null,"",null,null,null,""]
[null,"",null,null,null,""]
[null,"",null,null,null,""]
[null,"",null,null,null,""]
[null,"",null,null,null,""]
[null,"",null,null,null,""]
[null,"",null,null,null,""]
[null,"",null,null,null,""]
[null,"",null,null,null,""]
[null,"",null,null,null,""]
[null,"",null,null,null,""]
[null,"",null,null,null,""]
[null,"",null,null,null,""]
[null,"",null,null,null,""]
[null,"",null,null,null,""]
[null,"",null,null,null,""]
[null,"",null,null,null,""]
[null,"",null,null,null,""]
[null,"",null,null,null,""]
[null,"",null,null,null,""]
[null,"",null,null,null,""]
[null,"",null,null,null,""]
[null,"",null,null,null,""]
[null,"",null,null,null,""]
[null,"",null,null,null,""]
[null,"",null,null,null,""]
[null,"",null,null,null,""]
[null,"",null,null,null,""]
[null,"",null,null,null,""]
[null,"",null,null,null,""]
[null,"",null,null,null,""]
[null,"",null,null,null,""]
[null,"",null,null,null,""]
[null,"",null,null,null,""]
[null,"",null,null,null,""]
[null,"",null,null,null,""]
[null,"",null,null,null,""]
[null,"",null,null,null,""]
[null,"",null,null,null,""]
[null,"",null,null,null,""]
[null,"",null,null,null,""]
[null,"",null,null,null,""]
[null,"",null,null,null,""]
[null,"",null,null,null,""]
[null,"",null,null,null,""]
[null,"",null,null,null,""]
[null,"",null,null,null,""]
[null,{"$f":"IF(C948=\"\",\"\",B947+1)","v":""},null,null,null,{"$f":"IF(D948=\"\",\"\",E948-1)","v":""}]
[null,"",null,null,null,""]
[null,"",null,null,null,""]
[null,"",null,null,null,""]
[null,"",null,null,null,""]
[null,"",null,null,null,""]
[null,"",null,null,null,""]
[null,"",null,null,null,""]
[null,"",null,null,null,""]
[null,"",null,null,null,""]
[null,"",null,null,null,""]
[null,"",null,null,null,""]
[null,"",null,null,null,""]
[null,"",null,null,null,""]
[null,"",null,null,null,""]
[null,"",null,null,null,""]
[null,"",null,null,null,""]
[null,"",null,null,null,""]
[null,"",null,null,null,""]
[null,"",null,null,null,""]
[null,"",null,null,null,""]
[null,"",null,null,null,""]
[null,"",null,null,null,""]
[null,"",null,null,null,""]
[null,"",null,null,null,""]
[null,"",null,null,null,""]
[null,"",null,null,null,""]
[null,"",null,null,null,""]
[null,"",null,null,null,""]
[null,"",null,null,null,""]
[null,"",null,null,null,""]
[null,"",null,null,null,""]
[null,"",null,null,null,""]
[null,"",null,null,null,""]
[null,"",null,null,null,""]
[null,"",null,null,null,""]
[null,"",null,null,null,""]
[null,"",null,null,null,""]
[null,"",null,null,null,""]
[null,"",null,null,null,""]
[null,"",null,null,null,""]
[null,"",null,null,null,""]
[null,"",null,null,null,""]
[null,"",null,null,null,""]
[null,"",null,null,null,""]
[null,"",null,null,null,""]
[null,"",null,null,null,""]
[null,"",null,null,null,""]
[null,"",null,null,null,""]
[null,"",null,null,null,""]
[null,"",null,null,null,""]
[null,"",null,null,null,""]
[null,"",null,null,null,""]

{"sheet":"Tipps","index":1,"n_rows":19,"n_cols":2,"rows_kept":19,"cut":false,"hidden":false,"merged":[[0,0,1,2]]}
["Ein paar kleine Tipps"]
[]
["üNr"]
[" - die Tabelle in üNr wurde überarbeitet und funktioniert jetzt fehlerfrei"]
[" - die Kalendereingabe wurde hinzugefügt"]
[" - bei Namen funktioniert jetzt wieder die einzel Buchstabenauswahl"]
[" - nach erreichen von 60 Nr. wird die Berechnung ausgelöst und alle Einträge der Tabelle werden übernommen und löschen sich danach"]
[]
["Urlaubsauswertung"]
[" - zwei Knöpfe stehen zur Verfügung \"Daten holen\" und \"Daten zurück\""]
[" - \"Daten holen\" - kopiert die Urlaubsdaten von üNr nach Urlaubsauswertung"]
[" - bei Abgeltung eines KU - in den grau markierten Spalten neben dem gewünschten Datum klicken und die Entf Taste drücken"]
[" - danach \"Daten zurück\" nutzen um die bearbeiteten Urlaubsdaten wieder an üNr zu übergeben"]
[]
["Lotsen"]
[" - sicherlich schon bekannt aus der bereits genutzten Datei von mir, allerdings mit einem kleinen Update"]
[" - \"Name finden\" - 3 bis 4 Buschstaben reichen zum finden (ausser es gibt mehrere Möglichkeiten), dann kommt eine Abfrage ob der Name gelöscht werden soll"," + bei ja = gelöscht"]
[null," + bei nein = springt der Bildschirm zum Namen und zeigt ihn oben links an - bei gleichen Namen ggf. den richtigen Namen auswählen und von Hand löschen"]
[" - Name lösche geht, aber BITTE nicht sortieren"]

{"sheet":"Urlaubsauswertung","index":2,"n_rows":212,"n_cols":30,"rows_kept":212,"cut":false,"hidden":false,"merged":[]}
[]
[{"$f":"TODAY()","v":"2025-02-14"}]
["Namen","U-Tag","Datum",null,"U-Tag","Datum",null,"U-Tag","Datum",null,"U-Tag","Datum",null,"U-Tag","Datum",null,"U-Tag","Datum",null,"U-Tag","Datum",null,"U-Tag","Datum",null,"U-Tag","Datum",null,"U-Tag","Datum"]
[{"$f":"Lotsen!A2","v":"A"}]
[{"$f":"Lotsen!A3","v":"B"}]
[{"$f":"Lotsen!A4","v":"Baum"}]
[{"$f":"Lotsen!A5","v":"Bert"}]
[{"$f":"Lotsen!A6","v":"Blech"}]
[{"$f":"Lotsen!A7","v":"C"}]
[{"$f":"Lotsen!A8","v":"Claus"}]
[{"$f":"Lotsen!A9","v":"Clausi"}]
[{"$f":"Lotsen!A10","v":"D"}]
[{"$f":"Lotsen!A11","v":"Dietmar"}]
[{"$f":"Lotsen!A12","v":"Dietter"}]
[{"$f":"Lotsen!A13","v":"Dirk"}]
[{"$f":"Lotsen!A14","v":"E"}]
[{"$f":"Lotsen!A15","v":"Elfi"}]
[{"$f":"Lotsen!A16","v":"Erwin"}]
[{"$f":"Lotsen!A17","v":"F"}]
[{"$f":"Lotsen!A18","v":"Frank"}]
[{"$f":"Lotsen!A19","v":"Fritz"}]
[{"$f":"Lotsen!A20","v":0}]
[{"$f":"Lotsen!A21","v":0}]
[{"$f":"Lotsen!A22","v":0}]
[{"$f":"Lotsen!A23","v":0}]
[{"$f":"Lotsen!A24","v":0}]
[{"$f":"Lotsen!A25","v":0}]
[{"$f":"Lotsen!A26","v":0}]
[{"$f":"Lotsen!A27","v":0}]
[{"$f":"Lotsen!A28","v":0}]
[{"$f":"Lotsen!A29","v":0}]
[{"$f":"Lotsen!A30","v":0}]
[{"$f":"Lotsen!A31","v":0}]
[{"$f":"Lotsen!A32","v":0}]
[{"$f":"Lotsen!A33","v":0}]
[{"$f":"Lotsen!A34","v":0}]
[{"$f":"Lotsen!A35","v":0}]
[{"$f":"Lotsen!A36","v":0}]
[{"$f":"Lotsen!A37","v":0}]
[{"$f":"Lotsen!A38","v":0}]
[{"$f":"Lotsen!A39","v":0}]
[{"$f":"Lotsen!A40","v":0}]
[{"$f":"Lotsen!A41","v":0}]
[{"$f":"Lotsen!A42","v":0}]
[{"$f":"Lotsen!A43","v":0}]
[{"$f":"Lotsen!A44","v":0}]
[{"$f":"Lotsen!A45","v":0}]
[{"$f":"Lotsen!A46","v":0}]
[{"$f":"Lotsen!A47","v":0}]
[{"$f":"Lotsen!A48","v":0}]
[{"$f":"Lotsen!A49","v":0}]
[{"$f":"Lotsen!A50","v":0}]
[{"$f":"Lotsen!A51","v":0}]
[{"$f":"Lotsen!A52","v":0}]
[{"$f":"Lotsen!A53","v":0}]
[{"$f":"Lotsen!A54","v":0}]
[{"$f":"Lotsen!A55","v":0}]
[{"$f":"Lotsen!A56","v":0}]
[{"$f":"Lotsen!A57","v":0}]
[{"$f":"Lotsen!A58","v":0}]
[{"$f":"Lotsen!A59","v":0}]
[{"$f":"Lotsen!A60","v":0}]
[{"$f":"Lotsen!A61","v":0}]
[{"$f":"Lotsen!A62","v":0}]
[{"$f":"Lotsen!A63","v":0}]
[{"$f":"Lotsen!A64","v":0}]
[{"$f":"Lotsen!A65","v":0}]
[{"$f":"Lotsen!A66","v":0}]
[{"$f":"Lotsen!A67","v":0}]
[{"$f":"Lotsen!A68","v":0}]
[{"$f":"Lotsen!A69","v":0}]
[{"$f":"Lotsen!A70","v":0}]
[{"$f":"Lotsen!A71","v":0}]
[{"$f":"Lotsen!A72","v":0}]
[{"$f":"Lotsen!A73","v":0}]
[{"$f":"Lotsen!A74","v":0}]
[{"$f":"Lotsen!A75","v":0}]
[{"$f":"Lotsen!A76","v":0}]
[{"$f":"Lotsen!A77","v":0}]
[{"$f":"Lotsen!A78","v":0}]
[{"$f":"Lotsen!A79","v":0}]
[{"$f":"Lotsen!A80","v":0}]
[{"$f":"Lotsen!A81","v":0}]
[{"$f":"Lotsen!A82","v":0}]
[{"$f":"Lotsen!A83","v":0}]
[{"$f":"Lotsen!A84","v":0}]
[{"$f":"Lotsen!A85","v":0}]
[{"$f":"Lotsen!A86","v":0}]
[{"$f":"Lotsen!A87","v":0}]
[{"$f":"Lotsen!A88","v":0}]
[{"$f":"Lotsen!A89","v":0}]
[{"$f":"Lotsen!A90","v":0}]
[{"$f":"Lotsen!A91","v":0}]
[{"$f":"Lotsen!A92","v":0}]
[{"$f":"Lotsen!A93","v":0}]
[{"$f":"Lotsen!A94","v":0}]
[{"$f":"Lotsen!A95","v":0}]
[{"$f":"Lotsen!A96","v":0}]
[{"$f":"Lotsen!A97","v":0}]
[{"$f":"Lotsen!A98","v":0}]
[{"$f":"Lotsen!A99","v":0}]
[{"$f":"Lotsen!A100","v":0}]
[{"$f":"Lotsen!A101","v":0}]
[{"$f":"Lotsen!A102","v":0}]
[{"$f":"Lotsen!A103","v":0}]
[{"$f":"Lotsen!A104","v":0}]
[{"$f":"Lotsen!A105","v":0}]
[{"$f":"Lotsen!A106","v":0}]
[{"$f":"Lotsen!A107","v":0}]
[{"$f":"Lotsen!A108","v":0}]
[{"$f":"Lotsen!A109","v":0}]
[{"$f":"Lotsen!A110","v":0}]
[{"$f":"Lotsen!A111","v":0}]
[{"$f":"Lotsen!A112","v":0}]
[{"$f":"Lotsen!A113","v":0}]
[{"$f":"Lotsen!A114","v":0}]
[{"$f":"Lotsen!A115","v":0}]
[{"$f":"Lotsen!A116","v":0}]
[{"$f":"Lotsen!A117","v":0}]
[{"$f":"Lotsen!A118","v":0}]
[{"$f":"Lotsen!A119","v":0}]
[{"$f":"Lotsen!A120","v":0}]
[{"$f":"Lotsen!A121","v":0}]
[{"$f":"Lotsen!A122","v":0}]
[{"$f":"Lotsen!A123","v":0}]
[{"$f":"Lotsen!A124","v":0}]
[{"$f":"Lotsen!A125","v":0}]
[{"$f":"Lotsen!A126","v":0}]
[{"$f":"Lotsen!A127","v":0}]
[{"$f":"Lotsen!A128","v":0}]
[{"$f":"Lotsen!A129","v":0}]
[{"$f":"Lotsen!A130","v":0}]
[{"$f":"Lotsen!A131","v":0}]
[{"$f":"Lotsen!A132","v":0}]
[{"$f":"Lotsen!A133","v":0}]
[{"$f":"Lotsen!A134","v":0}]
[{"$f":"Lotsen!A135","v":0}]
[{"$f":"Lotsen!A136","v":0}]
[{"$f":"Lotsen!A137","v":0}]
[{"$f":"Lotsen!A138","v":0}]
[{"$f":"Lotsen!A139","v":0}]
[{"$f":"Lotsen!A140","v":0}]
[{"$f":"Lotsen!A141","v":0}]
[{"$f":"Lotsen!A142","v":0}]
[{"$f":"Lotsen!A143","v":0}]
[{"$f":"Lotsen!A144","v":0}]
[{"$f":"Lotsen!A145","v":0}]
[{"$f":"Lotsen!A146","v":0}]
[{"$f":"Lotsen!A147","v":0}]
[{"$f":"Lotsen!A148","v":0}]
[{"$f":"Lotsen!A149","v":0}]
[{"$f":"Lotsen!A150","v":0}]
[{"$f":"Lotsen!A151","v":0}]
[{"$f":"Lotsen!A152","v":0}]
[{"$f":"Lotsen!A153","v":0}]
[{"$f":"Lotsen!A154","v":0}]
[{"$f":"Lotsen!A155","v":0}]
[{"$f":"Lotsen!A156","v":0}]
[{"$f":"Lotsen!A157","v":0}]
[{"$f":"Lotsen!A158","v":0}]
[{"$f":"Lotsen!A159","v":0}]
[{"$f":"Lotsen!A160","v":0}]
[{"$f":"Lotsen!A161","v":0}]
[{"$f":"Lotsen!A162","v":0}]
[{"$f":"Lotsen!A163","v":0}]
[{"$f":"Lotsen!A164","v":0}]
[{"$f":"Lotsen!A165","v":0}]
[{"$f":"Lotsen!A166","v":0}]
[{"$f":"Lotsen!A167","v":0}]
[{"$f":"Lotsen!A168","v":0}]
[{"$f":"Lotsen!A169","v":0}]
[{"$f":"Lotsen!A170","v":0}]
[{"$f":"Lotsen!A171","v":0}]
[{"$f":"Lotsen!A172","v":0}]
[{"$f":"Lotsen!A173","v":0}]
[{"$f":"Lotsen!A174","v":0}]
[{"$f":"Lotsen!A175","v":0}]
[{"$f":"Lotsen!A176","v":0}]
[{"$f":"Lotsen!A177","v":0}]
[{"$f":"Lotsen!A178","v":0}]
[{"$f":"Lotsen!A179","v":0}]
[{"$f":"Lotsen!A180","v":0}]
[{"$f":"Lotsen!A181","v":0}]
[{"$f":"Lotsen!A182","v":0}]
[{"$f":"Lotsen!A183","v":0}]
[{"$f":"Lotsen!A184","v":0}]
[{"$f":"Lotsen!A185","v":0}]
[{"$f":"Lotsen!A186","v":0}]
[{"$f":"Lotsen!A187","v":0}]
[{"$f":"Lotsen!A188","v":0}]
[{"$f":"Lotsen!A189","v":0}]
[{"$f":"Lotsen!A190","v":0}]
[{"$f":"Lotsen!A191","v":0}]
[{"$f":"Lotsen!A192","v":0}]
[{"$f":"Lotsen!A193","v":0}]
[{"$f":"Lotsen!A194","v":0}]
[{"$f":"Lotsen!A195","v":0}]
[{"$f":"Lotsen!A196","v":0}]
[{"$f":"Lotsen!A197","v":0}]
[{"$f":"Lotsen!A198","v":0}]
[{"$f":"Lotsen!A199","v":0}]
[{"$f":"Lotsen!A200","v":0}]
[{"$f":"Lotsen!A201","v":0}]
[{"$f":"Lotsen!A202","v":0}]
[{"$f":"Lotsen!A203","v":0}]
[{"$f":"Lotsen!A204","v":0}]
[{"$f":"Lotsen!A205","v":0}]
[{"$f":"Lotsen!A206","v":0}]
[{"$f":"Lotsen!A207","v":0}]
[{"$f":"Lotsen!A208","v":0}]
[{"$f":"Lotsen!A209","v":0}]
[{"$f":"Lotsen!A210","v":0}]

{"sheet":"Lotsen","index":3,"n_rows":19,"n_cols":5,"rows_kept":19,"cut":false,"hidden":false,"merged":[[5,4,6,5]]}
[]
["A"]
["B"]
["Baum"]
["Bert"]
["Blech",null,null,null,"die ersten 3 Buchstaben reichen"]
["C"]
["Claus"]
["Clausi"]
["D"]
["Dietmar"]
["Dietter"]
["Dirk"]
["E"]
["Elfi"]
["Erwin"]
["F"]
["Frank"]
["Fritz"]